DepartmentFamily,Entity,Date,ExpenseType,ExpenseArea,Supplier,TransactionNumber,Amount,VATRegistrationNo,
BIS,The Insolvency Service,18/08/2016,Employee Related Costs,P&C - People Relations                                                                              ,ABILITYNET,BA0000298626,350.00,380597914,
BIS,The Insolvency Service,08/08/2016,Agency Workers,FINANCE AND COMMERCIAL                                                                              ,ALLEN LANE LIMITED,BA0000298260,"5,010.12",835970985,
BIS,The Insolvency Service,08/08/2016,Agency Workers,FINANCE AND COMMERCIAL                                                                              ,ALLEN LANE LIMITED,BA0000298262,"2,960.34",835970985,
BIS,The Insolvency Service,25/08/2016,Secretariat Costs,FINANCE AND COMMERCIAL                                                                              ,ATHENE PUBLISHING LTD,BA0000298855,"4,500.00",,
BIS,The Insolvency Service,01/08/2016,Computer and IT Systems,INFORMATION TECHNOLOGY                                                                              ,ATOS IT SERVICES UK LTD,BA0000298035,"45,805.11",,
BIS,The Insolvency Service,16/08/2016,Computer and IT Systems,FINANCE AND COMMERCIAL                                                                              ,ATOS IT SERVICES UK LTD,BA0000298471,"4,392.37",,
BIS,The Insolvency Service,24/08/2016,Computer and IT Systems,INFORMATION TECHNOLOGY                                                                              ,ATOS IT SERVICES UK LTD,BA0000298781,"194,986.66",,
BIS,The Insolvency Service,24/08/2016,Computer and IT Systems,INFORMATION TECHNOLOGY                                                                              ,ATOS IT SERVICES UK LTD,BA0000298808,225.58,,
BIS,The Insolvency Service,18/08/2016,Telecoms,INFORMATION TECHNOLOGY                                                                              ,AZZURRI COMMUNICATIONS LTD                                  ,BA0000298586,"4,914.46",,
BIS,The Insolvency Service,22/08/2016,Accommodation,ESTATES,BIS - DEPT. FOR BUSINESS INNOVATION & SKILLS,BA0000298648,"55,570.43",888825550,
BIS,The Insolvency Service,22/08/2016,Accommodation,ESTATES,BIS - DEPT. FOR BUSINESS INNOVATION & SKILLS,BA0000298649,"50,718.26",888825550,
BIS,The Insolvency Service,22/08/2016,Accommodation,ESTATES,BIS - DEPT. FOR BUSINESS INNOVATION & SKILLS,BA0000298650,"43,092.91",888825550,
BIS,The Insolvency Service,23/08/2016,Accommodation,ESTATES,BIS - DEPT. FOR BUSINESS INNOVATION & SKILLS,BA0000298726,"55,402.66",888825550,
BIS,The Insolvency Service,24/08/2016,Accommodation,ESTATES,BIS - DEPT. FOR BUSINESS INNOVATION & SKILLS,BA0000298795,-75.74,888825550,
BIS,The Insolvency Service,24/08/2016,Accommodation,ESTATES,BIS - DEPT. FOR BUSINESS INNOVATION & SKILLS,BA0000298796,489.87,888825550,
BIS,The Insolvency Service,24/08/2016,Accommodation,ESTATES,BIS - DEPT. FOR BUSINESS INNOVATION & SKILLS,BA0000298797,"3,825.35",888825550,
BIS,The Insolvency Service,24/08/2016,Accommodation,ESTATES,BIS - DEPT. FOR BUSINESS INNOVATION & SKILLS,BA0000298798,"-1,226.42",888825550,
BIS,The Insolvency Service,01/08/2016,Investigation and Enforcement Costs,INVESTIGATIONS & ENFORCEMENT                                                                        ,BOND DICKINSON                                              ,BA0000298065,"3,755.25",123392627,
BIS,The Insolvency Service,10/08/2016,Investigation and Enforcement Costs,INVESTIGATIONS & ENFORCEMENT                                                                        ,BOND DICKINSON                                              ,BA0000298336,"24,413.71",123392627,
BIS,The Insolvency Service,10/08/2016,Investigation and Enforcement Costs,INVESTIGATIONS & ENFORCEMENT                                                                        ,BOND DICKINSON                                              ,BA0000298336,"2,969.10",123392627,
BIS,The Insolvency Service,10/08/2016,Investigation and Enforcement Costs,INVESTIGATIONS & ENFORCEMENT                                                                        ,BOND DICKINSON                                              ,BA0000298336,"60,887.78",123392627,
BIS,The Insolvency Service,10/08/2016,Investigation and Enforcement Costs,INVESTIGATIONS & ENFORCEMENT                                                                        ,BOND DICKINSON                                              ,BA0000298336,"12,512.00",123392627,
BIS,The Insolvency Service,10/08/2016,Investigation and Enforcement Costs,INVESTIGATIONS & ENFORCEMENT                                                                        ,BOND DICKINSON                                              ,BA0000298336,"9,477.70",123392627,
BIS,The Insolvency Service,10/08/2016,Investigation and Enforcement Costs,INVESTIGATIONS & ENFORCEMENT                                                                        ,BOND DICKINSON                                              ,BA0000298336,313.82,123392627,
BIS,The Insolvency Service,10/08/2016,Investigation and Enforcement Costs,INVESTIGATIONS & ENFORCEMENT                                                                        ,BOND DICKINSON                                              ,BA0000298336,"13,430.02",123392627,
BIS,The Insolvency Service,18/08/2016,Accommodation,ESTATES,BRITISH GAS BUSINESS,BA0000298578,"1,384.09",684966762,
BIS,The Insolvency Service,18/08/2016,Accommodation,ESTATES,BRITISH GAS BUSINESS,BA0000298579,742.78,684966762,
BIS,The Insolvency Service,18/08/2016,Accommodation,ESTATES,BRITISH GAS BUSINESS,BA0000298580,934.42,684966762,
BIS,The Insolvency Service,18/08/2016,Accommodation,ESTATES,BRITISH GAS BUSINESS,BA0000298581,218.54,684966762,
BIS,The Insolvency Service,18/08/2016,Accommodation,ESTATES,BRITISH GAS BUSINESS,BA0000298582,167.21,684966762,
BIS,The Insolvency Service,18/08/2016,Accommodation,ESTATES,BRITISH GAS BUSINESS,BA0000298583,834.42,684966762,
BIS,The Insolvency Service,18/08/2016,Accommodation,ESTATES,BRITISH GAS BUSINESS,BA0000298584,103.62,684966762,
BIS,The Insolvency Service,18/08/2016,Accommodation,ESTATES,BRITISH GAS BUSINESS,BA0000298585,49.95,684966762,
BIS,The Insolvency Service,18/08/2016,Accommodation,ESTATES,BRITISH GAS BUSINESS,BA0000298588,804.67,684966762,
BIS,The Insolvency Service,18/08/2016,Accommodation,ESTATES,BRITISH GAS BUSINESS,BA0000298590,808.59,684966762,
BIS,The Insolvency Service,18/08/2016,Accommodation,ESTATES,BRITISH GAS BUSINESS,BA0000298591,195.02,684966762,
BIS,The Insolvency Service,18/08/2016,Accommodation,ESTATES,BRITISH GAS BUSINESS,BA0000298592,243.62,684966762,
BIS,The Insolvency Service,18/08/2016,Accommodation,ESTATES,BRITISH GAS BUSINESS,BA0000298593,810.30,684966762,
BIS,The Insolvency Service,18/08/2016,Accommodation,ESTATES,BRITISH GAS BUSINESS,BA0000298596,231.50,684966762,
BIS,The Insolvency Service,18/08/2016,Accommodation,ESTATES,BRITISH GAS BUSINESS,BA0000298597,329.78,684966762,
BIS,The Insolvency Service,18/08/2016,Accommodation,ESTATES,BRITISH GAS BUSINESS,BA0000298598,244.50,684966762,
BIS,The Insolvency Service,18/08/2016,Accommodation,ESTATES,BRITISH GAS BUSINESS,BA0000298594,783.62,684966762,
BIS,The Insolvency Service,18/08/2016,Accommodation,ESTATES,BRITISH GAS BUSINESS,BA0000298599,299.54,684966762,
BIS,The Insolvency Service,18/08/2016,Accommodation,ESTATES,BRITISH GAS BUSINESS,BA0000298600,190.99,684966762,
BIS,The Insolvency Service,18/08/2016,Accommodation,ESTATES,BRITISH GAS BUSINESS,BA0000298601,293.98,684966762,
BIS,The Insolvency Service,18/08/2016,Accommodation,ESTATES,BRITISH GAS BUSINESS,BA0000298595,811.15,684966762,
BIS,The Insolvency Service,18/08/2016,Accommodation,ESTATES,BRITISH GAS BUSINESS,BA0000298602,258.36,684966762,
BIS,The Insolvency Service,18/08/2016,Accommodation,ESTATES,BRITISH GAS BUSINESS,BA0000298603,298.78,684966762,
BIS,The Insolvency Service,18/08/2016,Accommodation,ESTATES,BRITISH GAS BUSINESS,BA0000298604,331.44,684966762,
BIS,The Insolvency Service,18/08/2016,Accommodation,ESTATES,BRITISH GAS BUSINESS,BA0000298605,244.87,684966762,
BIS,The Insolvency Service,18/08/2016,Accommodation,ESTATES,BRITISH GAS BUSINESS,BA0000298606,328.28,684966762,
BIS,The Insolvency Service,18/08/2016,Accommodation,ESTATES,BRITISH GAS BUSINESS,BA0000298607,257.62,684966762,
BIS,The Insolvency Service,18/08/2016,Accommodation,ESTATES,BRITISH GAS BUSINESS,BA0000298608,761.44,684966762,
BIS,The Insolvency Service,18/08/2016,Accommodation,ESTATES,BRITISH GAS BUSINESS,BA0000298611,288.19,684966762,
BIS,The Insolvency Service,18/08/2016,Accommodation,ESTATES,BRITISH GAS BUSINESS,BA0000298612,302.85,684966762,
BIS,The Insolvency Service,18/08/2016,Accommodation,ESTATES,BRITISH GAS BUSINESS,BA0000298609,773.37,684966762,
BIS,The Insolvency Service,18/08/2016,Accommodation,ESTATES,BRITISH GAS BUSINESS,BA0000298610,778.21,684966762,
BIS,The Insolvency Service,18/08/2016,Accommodation,ESTATES,BRITISH GAS BUSINESS,BA0000298613,621.03,684966762,
BIS,The Insolvency Service,18/08/2016,Accommodation,ESTATES,BRITISH GAS BUSINESS,BA0000298614,652.53,684966762,
BIS,The Insolvency Service,18/08/2016,Accommodation,ESTATES,BRITISH GAS BUSINESS,BA0000298615,697.16,684966762,
BIS,The Insolvency Service,18/08/2016,Accommodation,ESTATES,BRITISH GAS BUSINESS,BA0000298616,627.04,684966762,
BIS,The Insolvency Service,18/08/2016,Accommodation,ESTATES,BRITISH GAS BUSINESS,BA0000298617,883.87,684966762,
BIS,The Insolvency Service,18/08/2016,Accommodation,ESTATES,BRITISH GAS BUSINESS,BA0000298618,60.70,684966762,
BIS,The Insolvency Service,18/08/2016,Accommodation,ESTATES,BRITISH GAS BUSINESS,BA0000298619,100.22,684966762,
BIS,The Insolvency Service,18/08/2016,Accommodation,ESTATES,BRITISH GAS BUSINESS,BA0000298620,129.43,684966762,
BIS,The Insolvency Service,18/08/2016,Accommodation,ESTATES,BRITISH GAS BUSINESS,BA0000298621,37.93,684966762,
BIS,The Insolvency Service,18/08/2016,Accommodation,ESTATES,BRITISH GAS BUSINESS,BA0000298622,30.52,684966762,
BIS,The Insolvency Service,18/08/2016,Accommodation,ESTATES,BRITISH GAS BUSINESS,BA0000298623,102.64,684966762,
BIS,The Insolvency Service,30/08/2016,Accommodation,ESTATES,BRITISH GAS BUSINESS,BA0000298924,19.81,684966762,
BIS,The Insolvency Service,30/08/2016,Accommodation,ESTATES,BRITISH GAS BUSINESS,BA0000298925,20.33,684966762,
BIS,The Insolvency Service,30/08/2016,Accommodation,ESTATES,BRITISH GAS BUSINESS,BA0000298926,20.49,684966762,
BIS,The Insolvency Service,30/08/2016,Accommodation,ESTATES,BRITISH GAS BUSINESS,BA0000298927,21.93,684966762,
BIS,The Insolvency Service,30/08/2016,Accommodation,ESTATES,BRITISH GAS BUSINESS,BA0000298928,86.99,684966762,
BIS,The Insolvency Service,30/08/2016,Accommodation,ESTATES,BRITISH GAS BUSINESS,BA0000298929,88.31,684966762,
BIS,The Insolvency Service,30/08/2016,Accommodation,ESTATES,BRITISH GAS BUSINESS,BA0000298921,21.71,684966762,
BIS,The Insolvency Service,30/08/2016,Accommodation,ESTATES,BRITISH GAS BUSINESS,BA0000298922,20.39,684966762,
BIS,The Insolvency Service,30/08/2016,Accommodation,ESTATES,BRITISH GAS BUSINESS,BA0000298930,18.52,684966762,
BIS,The Insolvency Service,30/08/2016,Accommodation,ESTATES,BRITISH GAS BUSINESS,BA0000298931,673.95,684966762,
BIS,The Insolvency Service,30/08/2016,Accommodation,ESTATES,BRITISH GAS BUSINESS,BA0000298932,19.53,684966762,
BIS,The Insolvency Service,30/08/2016,Accommodation,ESTATES,BRITISH GAS BUSINESS,BA0000298933,701.73,684966762,
BIS,The Insolvency Service,30/08/2016,Accommodation,ESTATES,BRITISH GAS BUSINESS,BA0000298923,21.16,684966762,
BIS,The Insolvency Service,30/08/2016,Accommodation,ESTATES,BRITISH GAS BUSINESS,BA0000298936,227.49,684966762,
BIS,The Insolvency Service,30/08/2016,Accommodation,ESTATES,BRITISH GAS BUSINESS,BA0000298937,18.52,684966762,
BIS,The Insolvency Service,30/08/2016,Accommodation,ESTATES,BRITISH GAS BUSINESS,BA0000298938,185.85,684966762,
BIS,The Insolvency Service,30/08/2016,Accommodation,ESTATES,BRITISH GAS BUSINESS,BA0000298939,26.76,684966762,
BIS,The Insolvency Service,30/08/2016,Accommodation,ESTATES,BRITISH GAS BUSINESS,BA0000298940,18.91,684966762,
BIS,The Insolvency Service,30/08/2016,Accommodation,ESTATES,BRITISH GAS BUSINESS,BA0000298941,26.76,684966762,
BIS,The Insolvency Service,30/08/2016,Accommodation,ESTATES,BRITISH GAS BUSINESS,BA0000298945,24.57,684966762,
BIS,The Insolvency Service,30/08/2016,Accommodation,ESTATES,BRITISH GAS BUSINESS,BA0000298946,275.01,684966762,
BIS,The Insolvency Service,30/08/2016,Accommodation,ESTATES,BRITISH GAS BUSINESS,BA0000298947,21.72,684966762,
BIS,The Insolvency Service,30/08/2016,Accommodation,ESTATES,BRITISH GAS BUSINESS,BA0000298948,713.56,684966762,
BIS,The Insolvency Service,30/08/2016,Accommodation,ESTATES,BRITISH GAS BUSINESS,BA0000298949,20.23,684966762,
BIS,The Insolvency Service,31/08/2016,Accommodation,ESTATES,BRITISH GAS BUSINESS,BA0000298953,86.62,684966762,
BIS,The Insolvency Service,31/08/2016,Accommodation,ESTATES,BRITISH GAS BUSINESS,BA0000298954,22.29,684966762,
BIS,The Insolvency Service,31/08/2016,Accommodation,ESTATES,BRITISH GAS BUSINESS,BA0000298987,304.22,684966762,
BIS,The Insolvency Service,31/08/2016,Accommodation,ESTATES,BRITISH GAS BUSINESS,BA0000298990,970.20,684966762,
BIS,The Insolvency Service,31/08/2016,Accommodation,ESTATES,BRITISH GAS BUSINESS,BA0000298994,8.22,684966762,
BIS,The Insolvency Service,01/08/2016,Agency Workers,FINANCE AND COMMERCIAL,BROOK STREET (UK) LTD,BA0000298053,"178,222.25",,
BIS,The Insolvency Service,04/08/2016,Agency Workers,FINANCE AND COMMERCIAL,BROOK STREET (UK) LTD,BA0000298208,"38,936.67",,
BIS,The Insolvency Service,12/08/2016,Agency Workers,FINANCE AND COMMERCIAL,BROOK STREET (UK) LTD,BA0000298403,"28,003.52",,
BIS,The Insolvency Service,19/08/2016,Agency Workers,FINANCE AND COMMERCIAL,BROOK STREET (UK) LTD,BA0000298637,"27,765.07",,
BIS,The Insolvency Service,25/08/2016,Agency Workers,FINANCE AND COMMERCIAL,BROOK STREET (UK) LTD,BA0000298861,"24,733.82",,
BIS,The Insolvency Service,03/08/2016,Telecoms,CUSTOMER AND COMMUNICATIONS                                                                         ,BT CONFERENCING SERVICES,BA0000298173,35.32,245719348,
BIS,The Insolvency Service,03/08/2016,Telecoms,EXTERNAL AFFAIRS                                                                                    ,BT CONFERENCING SERVICES,BA0000298173,2.70,245719348,
BIS,The Insolvency Service,03/08/2016,Telecoms,FINANCE AND COMMERCIAL,BT CONFERENCING SERVICES,BA0000298173,16.14,245719348,
BIS,The Insolvency Service,03/08/2016,Telecoms,FINANCE AND COMMERCIAL                                                                              ,BT CONFERENCING SERVICES,BA0000298173,19.94,245719348,
BIS,The Insolvency Service,03/08/2016,Telecoms,FINANCE AND COMMERCIAL                                                                              ,BT CONFERENCING SERVICES,BA0000298173,29.24,245719348,
BIS,The Insolvency Service,03/08/2016,Telecoms,FINANCE AND COMMERCIAL                                                                              ,BT CONFERENCING SERVICES,BA0000298173,41.29,245719348,
BIS,The Insolvency Service,03/08/2016,Telecoms,FINANCE AND COMMERCIAL                                                                              ,BT CONFERENCING SERVICES,BA0000298173,144.04,245719348,
BIS,The Insolvency Service,03/08/2016,Telecoms,FINANCE AND COMMERCIAL                                                                              ,BT CONFERENCING SERVICES,BA0000298173,399.43,245719348,
BIS,The Insolvency Service,03/08/2016,Telecoms,INFORMATION TECHNOLOGY                                                                              ,BT CONFERENCING SERVICES,BA0000298173,13.80,245719348,
BIS,The Insolvency Service,03/08/2016,Telecoms,INFORMATION TECHNOLOGY                                                                              ,BT CONFERENCING SERVICES,BA0000298173,101.38,245719348,
BIS,The Insolvency Service,03/08/2016,Telecoms,INFORMATION TECHNOLOGY                                                                              ,BT CONFERENCING SERVICES,BA0000298173,306.91,245719348,
BIS,The Insolvency Service,03/08/2016,Telecoms,INVESTIGATIONS & ENFORCEMENT                                                                        ,BT CONFERENCING SERVICES,BA0000298173,1.54,245719348,
BIS,The Insolvency Service,03/08/2016,Telecoms,INVESTIGATIONS & ENFORCEMENT                                                                        ,BT CONFERENCING SERVICES,BA0000298173,8.08,245719348,
BIS,The Insolvency Service,03/08/2016,Telecoms,INVESTIGATIONS & ENFORCEMENT                                                                        ,BT CONFERENCING SERVICES,BA0000298173,22.44,245719348,
BIS,The Insolvency Service,03/08/2016,Telecoms,OFFICIAL RECEIVER SERVICES                                                                          ,BT CONFERENCING SERVICES,BA0000298173,0.19,245719348,
BIS,The Insolvency Service,03/08/2016,Telecoms,OFFICIAL RECEIVER SERVICES                                                                          ,BT CONFERENCING SERVICES,BA0000298173,1.51,245719348,
BIS,The Insolvency Service,03/08/2016,Telecoms,OFFICIAL RECEIVER SERVICES                                                                          ,BT CONFERENCING SERVICES,BA0000298173,2.47,245719348,
BIS,The Insolvency Service,03/08/2016,Telecoms,OFFICIAL RECEIVER SERVICES                                                                          ,BT CONFERENCING SERVICES,BA0000298173,4.39,245719348,
BIS,The Insolvency Service,03/08/2016,Telecoms,OFFICIAL RECEIVER SERVICES                                                                          ,BT CONFERENCING SERVICES,BA0000298173,6.23,245719348,
BIS,The Insolvency Service,03/08/2016,Telecoms,OFFICIAL RECEIVER SERVICES                                                                          ,BT CONFERENCING SERVICES,BA0000298173,6.67,245719348,
BIS,The Insolvency Service,03/08/2016,Telecoms,OFFICIAL RECEIVER SERVICES                                                                          ,BT CONFERENCING SERVICES,BA0000298173,9.74,245719348,
BIS,The Insolvency Service,03/08/2016,Telecoms,OFFICIAL RECEIVER SERVICES                                                                          ,BT CONFERENCING SERVICES,BA0000298173,10.79,245719348,
BIS,The Insolvency Service,03/08/2016,Telecoms,OFFICIAL RECEIVER SERVICES                                                                          ,BT CONFERENCING SERVICES,BA0000298173,13.30,245719348,
BIS,The Insolvency Service,03/08/2016,Telecoms,OFFICIAL RECEIVER SERVICES                                                                          ,BT CONFERENCING SERVICES,BA0000298173,14.75,245719348,
BIS,The Insolvency Service,03/08/2016,Telecoms,OFFICIAL RECEIVER SERVICES                                                                          ,BT CONFERENCING SERVICES,BA0000298173,15.42,245719348,
BIS,The Insolvency Service,03/08/2016,Telecoms,OFFICIAL RECEIVER SERVICES                                                                          ,BT CONFERENCING SERVICES,BA0000298173,15.53,245719348,
BIS,The Insolvency Service,03/08/2016,Telecoms,OFFICIAL RECEIVER SERVICES                                                                          ,BT CONFERENCING SERVICES,BA0000298173,19.18,245719348,
BIS,The Insolvency Service,03/08/2016,Telecoms,OFFICIAL RECEIVER SERVICES                                                                          ,BT CONFERENCING SERVICES,BA0000298173,24.67,245719348,
BIS,The Insolvency Service,03/08/2016,Telecoms,OFFICIAL RECEIVER SERVICES                                                                          ,BT CONFERENCING SERVICES,BA0000298173,40.78,245719348,
BIS,The Insolvency Service,03/08/2016,Telecoms,OFFICIAL RECEIVER SERVICES                                                                          ,BT CONFERENCING SERVICES,BA0000298173,85.78,245719348,
BIS,The Insolvency Service,03/08/2016,Telecoms,P&C - People Relations                                                                              ,BT CONFERENCING SERVICES,BA0000298173,11.72,245719348,
BIS,The Insolvency Service,03/08/2016,Telecoms,P&C - Talent                                                                                        ,BT CONFERENCING SERVICES,BA0000298173,10.30,245719348,
BIS,The Insolvency Service,03/08/2016,Telecoms,PEOPLE & CAPABILITY                                                                                 ,BT CONFERENCING SERVICES,BA0000298173,5.58,245719348,
BIS,The Insolvency Service,03/08/2016,Telecoms,PEOPLE & CAPABILITY                                                                                 ,BT CONFERENCING SERVICES,BA0000298173,59.66,245719348,
BIS,The Insolvency Service,03/08/2016,Telecoms,PROJECTS                                                                                            ,BT CONFERENCING SERVICES,BA0000298173,9.97,245719348,
BIS,The Insolvency Service,03/08/2016,Telecoms,STRATEGY                                                                                            ,BT CONFERENCING SERVICES,BA0000298173,16.80,245719348,
BIS,The Insolvency Service,16/08/2016,Insolvency Case Related Costs,OFFICIAL RECEIVER SERVICES                                                                          ,BT TELEPHONE PAYMENT CENTRE,BA0000298473,110.05,245719348,
BIS,The Insolvency Service,18/08/2016,Computer and IT Systems,INFORMATION TECHNOLOGY                                                                              ,BT TELEPHONE PAYMENT CENTRE,BA0000298628,"7,721.13",245719348,
BIS,The Insolvency Service,22/08/2016,Computer and IT Systems,INFORMATION TECHNOLOGY                                                                              ,BT TELEPHONE PAYMENT CENTRE,BA0000298671,181.44,245719348,
BIS,The Insolvency Service,22/08/2016,Telecoms,BUSINESS SERVICES DIRECTORATE                                                                       ,BT TELEPHONE PAYMENT CENTRE,BA0000298671,61.31,245719348,
BIS,The Insolvency Service,22/08/2016,Telecoms,BUSINESS SERVICES DIRECTORATE                                                                       ,BT TELEPHONE PAYMENT CENTRE,BA0000298671,"1,020.99",245719348,
BIS,The Insolvency Service,22/08/2016,Telecoms,BUSINESS SERVICES DIRECTORATE                                                                       ,BT TELEPHONE PAYMENT CENTRE,BA0000298671,"1,850.11",245719348,
BIS,The Insolvency Service,22/08/2016,Telecoms,FINANCE AND COMMERCIAL                                                                              ,BT TELEPHONE PAYMENT CENTRE,BA0000298671,80.28,245719348,
BIS,The Insolvency Service,22/08/2016,Telecoms,FINANCE AND COMMERCIAL                                                                              ,BT TELEPHONE PAYMENT CENTRE,BA0000298671,206.03,245719348,
BIS,The Insolvency Service,22/08/2016,Telecoms,FINANCE AND COMMERCIAL                                                                              ,BT TELEPHONE PAYMENT CENTRE,BA0000298671,"2,284.85",245719348,
BIS,The Insolvency Service,22/08/2016,Telecoms,INFORMATION TECHNOLOGY                                                                              ,BT TELEPHONE PAYMENT CENTRE,BA0000298671,"1,742.76",245719348,
BIS,The Insolvency Service,22/08/2016,Telecoms,INVESTIGATIONS & ENFORCEMENT                                                                        ,BT TELEPHONE PAYMENT CENTRE,BA0000298671,80.28,245719348,
BIS,The Insolvency Service,22/08/2016,Telecoms,OFFICIAL RECEIVER SERVICES                                                                          ,BT TELEPHONE PAYMENT CENTRE,BA0000298671,-34.79,245719348,
BIS,The Insolvency Service,22/08/2016,Telecoms,OFFICIAL RECEIVER SERVICES                                                                          ,BT TELEPHONE PAYMENT CENTRE,BA0000298671,-19.71,245719348,
BIS,The Insolvency Service,22/08/2016,Telecoms,OFFICIAL RECEIVER SERVICES                                                                          ,BT TELEPHONE PAYMENT CENTRE,BA0000298671,-19.71,245719348,
BIS,The Insolvency Service,22/08/2016,Telecoms,OFFICIAL RECEIVER SERVICES                                                                          ,BT TELEPHONE PAYMENT CENTRE,BA0000298671,-15.83,245719348,
BIS,The Insolvency Service,22/08/2016,Telecoms,OFFICIAL RECEIVER SERVICES                                                                          ,BT TELEPHONE PAYMENT CENTRE,BA0000298671,34.79,245719348,
BIS,The Insolvency Service,22/08/2016,Telecoms,OFFICIAL RECEIVER SERVICES                                                                          ,BT TELEPHONE PAYMENT CENTRE,BA0000298671,322.50,245719348,
BIS,The Insolvency Service,22/08/2016,Telecoms,OFFICIAL RECEIVER SERVICES                                                                          ,BT TELEPHONE PAYMENT CENTRE,BA0000298671,494.35,245719348,
BIS,The Insolvency Service,22/08/2016,Telecoms,OFFICIAL RECEIVER SERVICES                                                                          ,BT TELEPHONE PAYMENT CENTRE,BA0000298671,551.73,245719348,
BIS,The Insolvency Service,22/08/2016,Telecoms,OFFICIAL RECEIVER SERVICES                                                                          ,BT TELEPHONE PAYMENT CENTRE,BA0000298671,574.36,245719348,
BIS,The Insolvency Service,22/08/2016,Telecoms,OFFICIAL RECEIVER SERVICES                                                                          ,BT TELEPHONE PAYMENT CENTRE,BA0000298671,591.63,245719348,
BIS,The Insolvency Service,22/08/2016,Telecoms,OFFICIAL RECEIVER SERVICES                                                                          ,BT TELEPHONE PAYMENT CENTRE,BA0000298671,612.48,245719348,
BIS,The Insolvency Service,22/08/2016,Telecoms,OFFICIAL RECEIVER SERVICES                                                                          ,BT TELEPHONE PAYMENT CENTRE,BA0000298671,666.00,245719348,
BIS,The Insolvency Service,22/08/2016,Telecoms,OFFICIAL RECEIVER SERVICES                                                                          ,BT TELEPHONE PAYMENT CENTRE,BA0000298671,822.54,245719348,
BIS,The Insolvency Service,22/08/2016,Telecoms,OFFICIAL RECEIVER SERVICES                                                                          ,BT TELEPHONE PAYMENT CENTRE,BA0000298671,865.92,245719348,
BIS,The Insolvency Service,22/08/2016,Telecoms,OFFICIAL RECEIVER SERVICES                                                                          ,BT TELEPHONE PAYMENT CENTRE,BA0000298671,871.93,245719348,
BIS,The Insolvency Service,22/08/2016,Telecoms,OFFICIAL RECEIVER SERVICES                                                                          ,BT TELEPHONE PAYMENT CENTRE,BA0000298671,943.49,245719348,
BIS,The Insolvency Service,22/08/2016,Telecoms,OFFICIAL RECEIVER SERVICES                                                                          ,BT TELEPHONE PAYMENT CENTRE,BA0000298671,"1,143.03",245719348,
BIS,The Insolvency Service,22/08/2016,Telecoms,OFFICIAL RECEIVER SERVICES                                                                          ,BT TELEPHONE PAYMENT CENTRE,BA0000298671,"1,173.59",245719348,
BIS,The Insolvency Service,22/08/2016,Telecoms,OFFICIAL RECEIVER SERVICES                                                                          ,BT TELEPHONE PAYMENT CENTRE,BA0000298671,"1,249.90",245719348,
BIS,The Insolvency Service,22/08/2016,Telecoms,OFFICIAL RECEIVER SERVICES                                                                          ,BT TELEPHONE PAYMENT CENTRE,BA0000298671,"1,323.78",245719348,
BIS,The Insolvency Service,22/08/2016,Telecoms,OFFICIAL RECEIVER SERVICES                                                                          ,BT TELEPHONE PAYMENT CENTRE,BA0000298671,"1,650.54",245719348,
BIS,The Insolvency Service,22/08/2016,Telecoms,OFFICIAL RECEIVER SERVICES                                                                          ,BT TELEPHONE PAYMENT CENTRE,BA0000298671,"3,622.77",245719348,
BIS,The Insolvency Service,22/08/2016,Telecoms,OFFICIAL RECEIVER SERVICES                                                                          ,BT TELEPHONE PAYMENT CENTRE,BA0000298671,"4,242.41",245719348,
BIS,The Insolvency Service,22/08/2016,Telecoms,OFFICIAL RECEIVER SERVICES                                                                          ,BT TELEPHONE PAYMENT CENTRE,BA0000298671,"5,330.22",245719348,
BIS,The Insolvency Service,22/08/2016,Telecoms,OFFICIAL RECEIVER SERVICES                                                                          ,BT TELEPHONE PAYMENT CENTRE,BA0000298679,"-5,065.07",245719348,
BIS,The Insolvency Service,17/08/2016,Investigation and Enforcement Costs,INVESTIGATIONS & ENFORCEMENT                                                                        ,BURNESS PAULL & WILLIAMSONS SOLICITORS,BA0000298529,153.00,268398111,
BIS,The Insolvency Service,17/08/2016,Investigation and Enforcement Costs,INVESTIGATIONS & ENFORCEMENT                                                                        ,BURNESS PAULL & WILLIAMSONS SOLICITORS,BA0000298529,"18,591.80",268398111,
BIS,The Insolvency Service,17/08/2016,Investigation and Enforcement Costs,INVESTIGATIONS & ENFORCEMENT                                                                        ,BURNESS PAULL & WILLIAMSONS SOLICITORS,BA0000298529,"1,998.85",268398111,
BIS,The Insolvency Service,17/08/2016,Investigation and Enforcement Costs,INVESTIGATIONS & ENFORCEMENT                                                                        ,BURNESS PAULL & WILLIAMSONS SOLICITORS,BA0000298529,"5,738.50",268398111,
BIS,The Insolvency Service,22/08/2016,Investigation and Enforcement Costs,INVESTIGATIONS & ENFORCEMENT                                                                        ,BURNESS PAULL & WILLIAMSONS SOLICITORS,BA0000298675,210.00,268398111,
BIS,The Insolvency Service,01/08/2016,Training Costs,PEOPLE & CAPABILITY                                                                                 ,CAPITA BUSINESS SERVICES LTD,BA0000298039,192.05,618184140,
BIS,The Insolvency Service,19/08/2016,Training Costs,INFORMATION TECHNOLOGY                                                                              ,CAPITA BUSINESS SERVICES LTD,BA0000298636,522.73,618184140,
BIS,The Insolvency Service,11/08/2016,Investigation and Enforcement Costs,INVESTIGATIONS & ENFORCEMENT                                                                        ,CATER WALSH TRANSCRIPTION LTD,BA0000298381,16.62,854840407,
BIS,The Insolvency Service,12/08/2016,Accommodation,ESTATES,CBRE LIMITED,BA0000298413,"2,087.54",,
BIS,The Insolvency Service,12/08/2016,Accommodation,ESTATES,CBRE LIMITED,BA0000298414,"2,087.54",,
BIS,The Insolvency Service,25/08/2016,Accommodation,ESTATES,CBRE LIMITED,BA0000298851,"164,512.50",,
BIS,The Insolvency Service,25/08/2016,Accommodation,ESTATES,CBRE LIMITED,BA0000298852,"164,880.00",,
BIS,The Insolvency Service,25/08/2016,Accommodation,ESTATES,CBRE LIMITED,BA0000298851,"17,896.23",,
BIS,The Insolvency Service,25/08/2016,Accommodation,ESTATES,CBRE LIMITED,BA0000298852,"17,924.34",,
BIS,The Insolvency Service,25/08/2016,Accommodation,ESTATES,CBRE LIMITED,BA0000298862,"10,046.40",,
BIS,The Insolvency Service,25/08/2016,Accommodation,ESTATES,CBRE LIMITED,BA0000298863,"9,980.16",,
BIS,The Insolvency Service,12/08/2016,Accommodation,ESTATES,CBRE Ltd,BA0000298401,573.56,,
BIS,The Insolvency Service,15/08/2016,Accommodation,ESTATES,CBRE Ltd,BA0000298445,"1,067.82",,
BIS,The Insolvency Service,25/08/2016,Accommodation,ESTATES,CBRE Ltd,BA0000298857,"13,648.57",,
BIS,The Insolvency Service,31/08/2016,Training Costs,FINANCE AND COMMERCIAL,CHAMBER BUSINESS TRAINING                                   ,BA0000298997,"9,975.00",,
BIS,The Insolvency Service,16/08/2016,Training Costs,PEOPLE & CAPABILITY                                                                                 ,CIPD ENTERPRISES LTD,BA0000298479,"3,700.00",756202737,
BIS,The Insolvency Service,03/08/2016,Postage,FINANCE AND COMMERCIAL                                                                              ,CITY SPRINT UK LTD,BA0000298136,55.02,,
BIS,The Insolvency Service,15/08/2016,Postage,OFFICIAL RECEIVER SERVICES                                                                          ,CITY SPRINT UK LTD,BA0000298429,189.63,,
BIS,The Insolvency Service,15/08/2016,Postage,OFFICIAL RECEIVER SERVICES                                                                          ,CITY SPRINT UK LTD,BA0000298448,37.84,,
BIS,The Insolvency Service,15/08/2016,Postage,OFFICIAL RECEIVER SERVICES                                                                          ,CITY SPRINT UK LTD,BA0000298446,37.03,,
BIS,The Insolvency Service,23/08/2016,Postage,FINANCE AND COMMERCIAL                                                                              ,CITY SPRINT UK LTD,BA0000298720,16.96,,
BIS,The Insolvency Service,24/08/2016,Postage,FINANCE AND COMMERCIAL                                                                              ,CITY SPRINT UK LTD,BA0000298794,40.23,,
BIS,The Insolvency Service,31/08/2016,Postage,OFFICIAL RECEIVER SERVICES                                                                          ,CITY SPRINT UK LTD,BA0000298983,110.25,,
BIS,The Insolvency Service,31/08/2016,Postage,OFFICIAL RECEIVER SERVICES                                                                          ,CITY SPRINT UK LTD,BA0000298986,15.11,,
BIS,The Insolvency Service,01/08/2016,Insolvency Case Related Costs,OFFICIAL RECEIVER SERVICES                                                                          ,COMPANIES HOUSE,BA0000298059,4.00,GD255,
BIS,The Insolvency Service,01/08/2016,Insolvency Case Related Costs,OFFICIAL RECEIVER SERVICES                                                                          ,COMPANIES HOUSE,BA0000298054,4.00,GD255,
BIS,The Insolvency Service,04/08/2016,Insolvency Case Related Costs,OFFICIAL RECEIVER SERVICES                                                                          ,COMPANIES HOUSE,BA0000298207,4.00,GD255,
BIS,The Insolvency Service,04/08/2016,Research Costs,EXTERNAL AFFAIRS                                                                                    ,COMPANIES HOUSE,BA0000298187,4.00,GD255,
BIS,The Insolvency Service,05/08/2016,Insolvency Case Related Costs,OFFICIAL RECEIVER SERVICES                                                                          ,COMPANIES HOUSE,BA0000298222,4.00,GD255,
BIS,The Insolvency Service,08/08/2016,Insolvency Case Related Costs,OFFICIAL RECEIVER SERVICES                                                                          ,COMPANIES HOUSE,BA0000298265,4.00,GD255,
BIS,The Insolvency Service,08/08/2016,Insolvency Case Related Costs,OFFICIAL RECEIVER SERVICES                                                                          ,COMPANIES HOUSE,BA0000298268,4.00,GD255,
BIS,The Insolvency Service,09/08/2016,Insolvency Case Related Costs,OFFICIAL RECEIVER SERVICES                                                                          ,COMPANIES HOUSE,BA0000298272,4.00,GD255,
BIS,The Insolvency Service,10/08/2016,Insolvency Case Related Costs,INVESTIGATIONS & ENFORCEMENT                                                                        ,COMPANIES HOUSE,BA0000298333,153.00,GD255,
BIS,The Insolvency Service,10/08/2016,Insolvency Case Related Costs,INVESTIGATIONS & ENFORCEMENT                                                                        ,COMPANIES HOUSE,BA0000298334,4.00,GD255,
BIS,The Insolvency Service,10/08/2016,Insolvency Case Related Costs,INVESTIGATIONS & ENFORCEMENT                                                                        ,COMPANIES HOUSE,BA0000298337,98.00,GD255,
BIS,The Insolvency Service,10/08/2016,Insolvency Case Related Costs,INVESTIGATIONS & ENFORCEMENT                                                                        ,COMPANIES HOUSE,BA0000298338,42.00,GD255,
BIS,The Insolvency Service,11/08/2016,Insolvency Case Related Costs,OFFICIAL RECEIVER SERVICES                                                                          ,COMPANIES HOUSE,BA0000298373,4.00,GD255,
BIS,The Insolvency Service,11/08/2016,Insolvency Case Related Costs,OFFICIAL RECEIVER SERVICES                                                                          ,COMPANIES HOUSE,BA0000298360,4.00,GD255,
BIS,The Insolvency Service,11/08/2016,Insolvency Case Related Costs,OFFICIAL RECEIVER SERVICES                                                                          ,COMPANIES HOUSE,BA0000298361,4.00,GD255,
BIS,The Insolvency Service,12/08/2016,Insolvency Case Related Costs,OFFICIAL RECEIVER SERVICES                                                                          ,COMPANIES HOUSE,BA0000298404,4.00,GD255,
BIS,The Insolvency Service,15/08/2016,Insolvency Case Related Costs,OFFICIAL RECEIVER SERVICES                                                                          ,COMPANIES HOUSE,BA0000298439,4.00,GD255,
BIS,The Insolvency Service,16/08/2016,Insolvency Case Related Costs,OFFICIAL RECEIVER SERVICES                                                                          ,COMPANIES HOUSE,BA0000298460,5.00,GD255,
BIS,The Insolvency Service,16/08/2016,Insolvency Case Related Costs,OFFICIAL RECEIVER SERVICES                                                                          ,COMPANIES HOUSE,BA0000298478,4.00,GD255,
BIS,The Insolvency Service,16/08/2016,Office Supplies and Services,INVESTIGATIONS & ENFORCEMENT                                                                        ,COMPANIES HOUSE,BA0000298461,4.00,GD255,
BIS,The Insolvency Service,17/08/2016,Insolvency Case Related Costs,BUSINESS SERVICES DIRECTORATE                                                                       ,COMPANIES HOUSE,BA0000298500,10.00,GD255,
BIS,The Insolvency Service,17/08/2016,Insolvency Case Related Costs,BUSINESS SERVICES DIRECTORATE                                                                       ,COMPANIES HOUSE,BA0000298519,5.00,GD255,
BIS,The Insolvency Service,17/08/2016,Insolvency Case Related Costs,BUSINESS SERVICES DIRECTORATE                                                                       ,COMPANIES HOUSE,BA0000298521,8.00,GD255,
BIS,The Insolvency Service,17/08/2016,Insolvency Case Related Costs,OFFICIAL RECEIVER SERVICES                                                                          ,COMPANIES HOUSE,BA0000298531,4.00,GD255,
BIS,The Insolvency Service,26/08/2016,Insolvency Case Related Costs,OFFICIAL RECEIVER SERVICES                                                                          ,COMPANIES HOUSE,BA0000298891,12.00,GD255,
BIS,The Insolvency Service,05/08/2016,Agency Workers,INFORMATION TECHNOLOGY                                                                              ,CONCEPT INFORMATION TECHNOLOGY LTD                          ,BA0000298218,"3,060.00",776147892,
BIS,The Insolvency Service,08/08/2016,Agency Workers,INFORMATION TECHNOLOGY                                                                              ,CONCEPT INFORMATION TECHNOLOGY LTD                          ,BA0000298259,"1,950.00",776147892,
BIS,The Insolvency Service,08/08/2016,Agency Workers,INFORMATION TECHNOLOGY                                                                              ,CONCEPT INFORMATION TECHNOLOGY LTD                          ,BA0000298261,"1,950.00",776147892,
BIS,The Insolvency Service,11/08/2016,Agency Workers,INFORMATION TECHNOLOGY                                                                              ,CONCEPT INFORMATION TECHNOLOGY LTD                          ,BA0000298367,"3,060.00",776147892,
BIS,The Insolvency Service,12/08/2016,Agency Workers,INFORMATION TECHNOLOGY                                                                              ,CONCEPT INFORMATION TECHNOLOGY LTD                          ,BA0000298397,"1,950.00",776147892,
BIS,The Insolvency Service,19/08/2016,Agency Workers,INFORMATION TECHNOLOGY                                                                              ,CONCEPT INFORMATION TECHNOLOGY LTD                          ,BA0000298639,"2,448.00",776147892,
BIS,The Insolvency Service,19/08/2016,Agency Workers,INFORMATION TECHNOLOGY                                                                              ,CONCEPT INFORMATION TECHNOLOGY LTD                          ,BA0000298640,"1,950.00",776147892,
BIS,The Insolvency Service,26/08/2016,Agency Workers,INFORMATION TECHNOLOGY                                                                              ,CONCEPT INFORMATION TECHNOLOGY LTD                          ,BA0000298888,"3,060.00",776147892,
BIS,The Insolvency Service,26/08/2016,Agency Workers,INFORMATION TECHNOLOGY                                                                              ,CONCEPT INFORMATION TECHNOLOGY LTD                          ,BA0000298889,"1,950.00",776147892,
BIS,The Insolvency Service,24/08/2016,Accommodation,ESTATES,CORONA ENERGY RETAIL 4 LIMITED,BA0000298779,22.69,714232961,
BIS,The Insolvency Service,15/08/2016,Secretariat Costs,CUSTOMER AND COMMUNICATIONS                                                                         ,CRD RESEARCH                                                ,BA0000298435,584.00,289382407,
BIS,The Insolvency Service,11/08/2016,Insolvency Case Related Costs,FINANCE AND COMMERCIAL,CUBISM LAW                                                  ,BA0000298382,"1,500.00",,
BIS,The Insolvency Service,16/08/2016,Insolvency Case Related Costs,OFFICIAL RECEIVER SERVICES                                                                          ,CUBISM LAW                                                  ,BA0000298455,"1,500.00",,
BIS,The Insolvency Service,04/08/2016,Accommodation,ESTATES,DEPARTMENT FOR WORK & PENSIONS,BA0000298188,24.65,888815554,
BIS,The Insolvency Service,04/08/2016,Accommodation,ESTATES,DEPARTMENT FOR WORK & PENSIONS,BA0000298188,123.47,888815554,
BIS,The Insolvency Service,04/08/2016,Accommodation,ESTATES,DEPARTMENT FOR WORK & PENSIONS,BA0000298188,647.94,888815554,
BIS,The Insolvency Service,04/08/2016,Accommodation,ESTATES,DERING PROPERTIES LTD. (svc),BA0000298211,739.15,,
BIS,The Insolvency Service,30/08/2016,Employee Related Costs,PEOPLE & CAPABILITY                                                                                 ,DISCLOSURE SCOTLAND,BA0000298950,175.00,,
BIS,The Insolvency Service,10/08/2016,Investigation and Enforcement Costs,INVESTIGATIONS & ENFORCEMENT                                                                        ,DWF                                                         ,BA0000298321,"3,097.50",,
BIS,The Insolvency Service,10/08/2016,Investigation and Enforcement Costs,INVESTIGATIONS & ENFORCEMENT                                                                        ,DWF                                                         ,BA0000298322,"2,953.00",,
BIS,The Insolvency Service,10/08/2016,Investigation and Enforcement Costs,INVESTIGATIONS & ENFORCEMENT                                                                        ,DWF                                                         ,BA0000298324,"52,156.10",,
BIS,The Insolvency Service,10/08/2016,Investigation and Enforcement Costs,INVESTIGATIONS & ENFORCEMENT                                                                        ,DWF                                                         ,BA0000298323,"1,009.00",,
BIS,The Insolvency Service,10/08/2016,Investigation and Enforcement Costs,INVESTIGATIONS & ENFORCEMENT                                                                        ,DWF                                                         ,BA0000298328,"1,484.00",,
BIS,The Insolvency Service,10/08/2016,Investigation and Enforcement Costs,INVESTIGATIONS & ENFORCEMENT                                                                        ,DWF                                                         ,BA0000298320,"8,389.67",,
BIS,The Insolvency Service,10/08/2016,Investigation and Enforcement Costs,INVESTIGATIONS & ENFORCEMENT                                                                        ,DWF                                                         ,BA0000298325,"8,267.95",,
BIS,The Insolvency Service,10/08/2016,Investigation and Enforcement Costs,INVESTIGATIONS & ENFORCEMENT                                                                        ,DWF                                                         ,BA0000298326,"15,143.40",,
BIS,The Insolvency Service,10/08/2016,Investigation and Enforcement Costs,INVESTIGATIONS & ENFORCEMENT                                                                        ,DWF                                                         ,BA0000298327,"3,580.50",,
BIS,The Insolvency Service,31/08/2016,Postage,INFORMATION TECHNOLOGY                                                                              ,DX NETWORK SERVICES LTD,BA0000298978,798.00,849741385,
BIS,The Insolvency Service,31/08/2016,Postage,INFORMATION TECHNOLOGY                                                                              ,DX NETWORK SERVICES LTD,BA0000299001,164.20,849741385,
BIS,The Insolvency Service,31/08/2016,Postage,INFORMATION TECHNOLOGY                                                                              ,DX NETWORK SERVICES LTD,BA0000299001,265.60,849741385,
BIS,The Insolvency Service,31/08/2016,Postage,OFFICIAL RECEIVER SERVICES                                                                          ,DX NETWORK SERVICES LTD,BA0000298982,137.15,849741385,
BIS,The Insolvency Service,31/08/2016,Postage,OFFICIAL RECEIVER SERVICES                                                                          ,DX NETWORK SERVICES LTD,BA0000298975,649.00,849741385,
BIS,The Insolvency Service,31/08/2016,Postage,OFFICIAL RECEIVER SERVICES                                                                          ,DX NETWORK SERVICES LTD,BA0000299001,56.83,849741385,
BIS,The Insolvency Service,31/08/2016,Postage,OFFICIAL RECEIVER SERVICES                                                                          ,DX NETWORK SERVICES LTD,BA0000299001,122.43,849741385,
BIS,The Insolvency Service,31/08/2016,Postage,OFFICIAL RECEIVER SERVICES                                                                          ,DX NETWORK SERVICES LTD,BA0000299001,127.30,849741385,
BIS,The Insolvency Service,31/08/2016,Postage,OFFICIAL RECEIVER SERVICES                                                                          ,DX NETWORK SERVICES LTD,BA0000299001,181.96,849741385,
BIS,The Insolvency Service,31/08/2016,Postage,OFFICIAL RECEIVER SERVICES                                                                          ,DX NETWORK SERVICES LTD,BA0000299001,188.65,849741385,
BIS,The Insolvency Service,31/08/2016,Postage,OFFICIAL RECEIVER SERVICES                                                                          ,DX NETWORK SERVICES LTD,BA0000299001,197.16,849741385,
BIS,The Insolvency Service,31/08/2016,Postage,OFFICIAL RECEIVER SERVICES                                                                          ,DX NETWORK SERVICES LTD,BA0000299001,214.42,849741385,
BIS,The Insolvency Service,31/08/2016,Postage,OFFICIAL RECEIVER SERVICES                                                                          ,DX NETWORK SERVICES LTD,BA0000299001,216.30,849741385,
BIS,The Insolvency Service,31/08/2016,Postage,OFFICIAL RECEIVER SERVICES                                                                          ,DX NETWORK SERVICES LTD,BA0000299001,238.39,849741385,
BIS,The Insolvency Service,31/08/2016,Postage,OFFICIAL RECEIVER SERVICES                                                                          ,DX NETWORK SERVICES LTD,BA0000299001,293.17,849741385,
BIS,The Insolvency Service,31/08/2016,Postage,OFFICIAL RECEIVER SERVICES                                                                          ,DX NETWORK SERVICES LTD,BA0000299001,342.48,849741385,
BIS,The Insolvency Service,31/08/2016,Postage,OFFICIAL RECEIVER SERVICES                                                                          ,DX NETWORK SERVICES LTD,BA0000299001,366.69,849741385,
BIS,The Insolvency Service,31/08/2016,Postage,OFFICIAL RECEIVER SERVICES                                                                          ,DX NETWORK SERVICES LTD,BA0000299001,400.92,849741385,
BIS,The Insolvency Service,31/08/2016,Postage,OFFICIAL RECEIVER SERVICES                                                                          ,DX NETWORK SERVICES LTD,BA0000299001,615.81,849741385,
BIS,The Insolvency Service,31/08/2016,Postage,OFFICIAL RECEIVER SERVICES                                                                          ,DX NETWORK SERVICES LTD,BA0000299001,934.57,849741385,
BIS,The Insolvency Service,31/08/2016,Postage,OFFICIAL RECEIVER SERVICES                                                                          ,DX NETWORK SERVICES LTD,BA0000299001,"1,104.54",849741385,
BIS,The Insolvency Service,11/08/2016,Accommodation,BUSINESS SERVICES DIRECTORATE                                                                       ,EC GROUP,BA0000298363,426.81,235525471,
BIS,The Insolvency Service,11/08/2016,Accommodation,OFFICIAL RECEIVER SERVICES                                                                          ,EC GROUP,BA0000298362,230.36,235525471,
BIS,The Insolvency Service,08/08/2016,Telecoms,INFORMATION TECHNOLOGY                                                                              ,EE LTD (AIR TIME)                                           ,BA0000298263,"5,947.14",771592016,
BIS,The Insolvency Service,04/08/2016,Conferences,CUSTOMER AND COMMUNICATIONS                                                                         ,EEF LTD                                                     ,BA0000298203,596.40,941811727,
BIS,The Insolvency Service,04/08/2016,Conferences,CUSTOMER AND COMMUNICATIONS                                                                         ,EEF LTD                                                     ,BA0000298203,861.60,941811727,
BIS,The Insolvency Service,04/08/2016,Training Costs,PEOPLE & CAPABILITY                                                                                 ,EEF LTD                                                     ,BA0000298203,810.00,941811727,
BIS,The Insolvency Service,09/08/2016,Insolvency Case Related Costs,FINANCE AND COMMERCIAL                                                                              ,EQUIFAX LTD                                                 ,BA0000298271,"16,917.00",,
BIS,The Insolvency Service,02/08/2016,Computer and IT Systems,BUSINESS SERVICES DIRECTORATE                                                                       ,EXPERIAN QAS LTD,BA0000298100,"2,537.04",887133593,
BIS,The Insolvency Service,02/08/2016,Computer and IT Systems,BUSINESS SERVICES DIRECTORATE                                                                       ,EXPERIAN QAS LTD,BA0000298099,"9,783.60",887133593,
BIS,The Insolvency Service,05/08/2016,Accommodation,ESTATES,F&C REIT ASSET MANAGEMENT PLC,BA0000298224,"3,475.30",209938729,
BIS,The Insolvency Service,01/08/2016,Insolvency Case Related Costs,OFFICIAL RECEIVER SERVICES                                                                          ,FRANK G. BOWEN LTD,BA0000298036,200.40,238504366,
BIS,The Insolvency Service,01/08/2016,Insolvency Case Related Costs,OFFICIAL RECEIVER SERVICES                                                                          ,FRANK G. BOWEN LTD,BA0000298037,78.00,238504366,
BIS,The Insolvency Service,01/08/2016,Insolvency Case Related Costs,OFFICIAL RECEIVER SERVICES                                                                          ,FRANK G. BOWEN LTD,BA0000298038,102.00,238504366,
BIS,The Insolvency Service,01/08/2016,Insolvency Case Related Costs,OFFICIAL RECEIVER SERVICES                                                                          ,FRANK G. BOWEN LTD,BA0000298040,180.00,238504366,
BIS,The Insolvency Service,01/08/2016,Insolvency Case Related Costs,OFFICIAL RECEIVER SERVICES                                                                          ,FRANK G. BOWEN LTD,BA0000298041,102.00,238504366,
BIS,The Insolvency Service,01/08/2016,Insolvency Case Related Costs,OFFICIAL RECEIVER SERVICES                                                                          ,FRANK G. BOWEN LTD,BA0000298042,102.00,238504366,
BIS,The Insolvency Service,01/08/2016,Insolvency Case Related Costs,OFFICIAL RECEIVER SERVICES                                                                          ,FRANK G. BOWEN LTD,BA0000298043,102.00,238504366,
BIS,The Insolvency Service,01/08/2016,Insolvency Case Related Costs,OFFICIAL RECEIVER SERVICES                                                                          ,FRANK G. BOWEN LTD,BA0000298044,108.00,238504366,
BIS,The Insolvency Service,01/08/2016,Insolvency Case Related Costs,OFFICIAL RECEIVER SERVICES                                                                          ,FRANK G. BOWEN LTD,BA0000298045,102.00,238504366,
BIS,The Insolvency Service,01/08/2016,Insolvency Case Related Costs,OFFICIAL RECEIVER SERVICES                                                                          ,FRANK G. BOWEN LTD,BA0000298046,102.00,238504366,
BIS,The Insolvency Service,02/08/2016,Secretariat Costs,CUSTOMER AND COMMUNICATIONS                                                                         ,G4S ASSESSMENT SERVICES (UK) LTD,BA0000298102,"2,364.00",274190162,
BIS,The Insolvency Service,30/08/2016,Computer and IT Systems,INFORMATION TECHNOLOGY                                                                              ,G4S FIRE & SECURITY SYSTEMS (UK) LTD                        ,BA0000298916,252.61,238560256,
BIS,The Insolvency Service,11/08/2016,Telecoms,BUSINESS SERVICES DIRECTORATE                                                                       ,GAMMA BUSINESS COMMUNICATIONS LTD,BA0000298369,110.44,823820344,
BIS,The Insolvency Service,11/08/2016,Telecoms,FINANCE AND COMMERCIAL                                                                              ,GAMMA BUSINESS COMMUNICATIONS LTD,BA0000298369,657.95,823820344,
BIS,The Insolvency Service,11/08/2016,Telecoms,INFORMATION TECHNOLOGY                                                                              ,GAMMA BUSINESS COMMUNICATIONS LTD,BA0000298369,150.18,823820344,
BIS,The Insolvency Service,11/08/2016,Telecoms,OFFICIAL RECEIVER SERVICES                                                                          ,GAMMA BUSINESS COMMUNICATIONS LTD,BA0000298369,70.78,823820344,
BIS,The Insolvency Service,11/08/2016,Telecoms,OFFICIAL RECEIVER SERVICES                                                                          ,GAMMA BUSINESS COMMUNICATIONS LTD,BA0000298369,76.13,823820344,
BIS,The Insolvency Service,11/08/2016,Telecoms,OFFICIAL RECEIVER SERVICES                                                                          ,GAMMA BUSINESS COMMUNICATIONS LTD,BA0000298369,113.31,823820344,
BIS,The Insolvency Service,11/08/2016,Telecoms,OFFICIAL RECEIVER SERVICES                                                                          ,GAMMA BUSINESS COMMUNICATIONS LTD,BA0000298369,142.13,823820344,
BIS,The Insolvency Service,11/08/2016,Telecoms,OFFICIAL RECEIVER SERVICES                                                                          ,GAMMA BUSINESS COMMUNICATIONS LTD,BA0000298369,143.05,823820344,
BIS,The Insolvency Service,11/08/2016,Telecoms,OFFICIAL RECEIVER SERVICES                                                                          ,GAMMA BUSINESS COMMUNICATIONS LTD,BA0000298369,147.73,823820344,
BIS,The Insolvency Service,11/08/2016,Telecoms,OFFICIAL RECEIVER SERVICES                                                                          ,GAMMA BUSINESS COMMUNICATIONS LTD,BA0000298369,190.05,823820344,
BIS,The Insolvency Service,11/08/2016,Telecoms,OFFICIAL RECEIVER SERVICES                                                                          ,GAMMA BUSINESS COMMUNICATIONS LTD,BA0000298369,210.83,823820344,
BIS,The Insolvency Service,11/08/2016,Telecoms,OFFICIAL RECEIVER SERVICES                                                                          ,GAMMA BUSINESS COMMUNICATIONS LTD,BA0000298369,270.09,823820344,
BIS,The Insolvency Service,11/08/2016,Telecoms,OFFICIAL RECEIVER SERVICES                                                                          ,GAMMA BUSINESS COMMUNICATIONS LTD,BA0000298369,384.75,823820344,
BIS,The Insolvency Service,18/08/2016,Investigation and Enforcement Costs,CUSTOMER AND COMMUNICATIONS                                                                         ,GORKANA GROUP LTD                                           ,BA0000298625,822.75,757158012,
BIS,The Insolvency Service,26/08/2016,Investigation and Enforcement Costs,CUSTOMER AND COMMUNICATIONS                                                                         ,GORKANA GROUP LTD                                           ,BA0000298887,"4,160.00",757158012,
BIS,The Insolvency Service,11/08/2016,Investigation and Enforcement Costs,CUSTOMER AND COMMUNICATIONS                                                                         ,GOVDELIVERY INC                                             ,BA0000298366,763.20,,
BIS,The Insolvency Service,11/08/2016,Investigation and Enforcement Costs,CUSTOMER AND COMMUNICATIONS                                                                         ,GOVDELIVERY INC                                             ,BA0000298359,763.20,,
BIS,The Insolvency Service,03/08/2016,Department for Business Innovation and Skills,FINANCE AND COMMERCIAL,GOVERNMENT INTERNAL AUDIT AGENCY                            ,BA0000298171,"6,104.40",,
BIS,The Insolvency Service,03/08/2016,Department for Business Innovation and Skills,FINANCE AND COMMERCIAL,GOVERNMENT INTERNAL AUDIT AGENCY                            ,BA0000298172,"52,544.40",,
BIS,The Insolvency Service,11/08/2016,Legal Costs,P&C - People Relations                                                                              ,GOVERNMENT LEGAL DEPARTMENT                                 ,BA0000298365,138.24,888823066,
BIS,The Insolvency Service,11/08/2016,Legal Costs,P&C - People Relations                                                                              ,GOVERNMENT LEGAL DEPARTMENT                                 ,BA0000298376,99.84,888823066,
BIS,The Insolvency Service,11/08/2016,Legal Costs,P&C - People Relations                                                                              ,GOVERNMENT LEGAL DEPARTMENT                                 ,BA0000298377,"2,490.12",888823066,
BIS,The Insolvency Service,15/08/2016,Legal Costs,OFFICIAL RECEIVER SERVICES                                                                          ,GOVERNMENT LEGAL DEPARTMENT                                 ,BA0000298436,"1,274.60",888823066,
BIS,The Insolvency Service,15/08/2016,Legal Costs,OFFICIAL RECEIVER SERVICES                                                                          ,GOVERNMENT LEGAL DEPARTMENT                                 ,BA0000298437,612.40,888823066,
BIS,The Insolvency Service,10/08/2016,Investigation and Enforcement Costs,INVESTIGATIONS & ENFORCEMENT                                                                        ,GOWLING WRAGGE LAWRENCE GRAHAM  & CO                        ,BA0000298332,"3,263.00",858698838,
BIS,The Insolvency Service,10/08/2016,Investigation and Enforcement Costs,INVESTIGATIONS & ENFORCEMENT                                                                        ,GOWLING WRAGGE LAWRENCE GRAHAM  & CO                        ,BA0000298332,"54,139.27",858698838,
BIS,The Insolvency Service,10/08/2016,Investigation and Enforcement Costs,INVESTIGATIONS & ENFORCEMENT                                                                        ,GOWLING WRAGGE LAWRENCE GRAHAM  & CO                        ,BA0000298331,475.00,858698838,
BIS,The Insolvency Service,10/08/2016,Investigation and Enforcement Costs,INVESTIGATIONS & ENFORCEMENT                                                                        ,GOWLING WRAGGE LAWRENCE GRAHAM  & CO                        ,BA0000298331,"13,422.40",858698838,
BIS,The Insolvency Service,12/08/2016,Investigation and Enforcement Costs,INVESTIGATIONS & ENFORCEMENT                                                                        ,GOWLING WRAGGE LAWRENCE GRAHAM  & CO                        ,BA0000298406,317.40,858698838,
BIS,The Insolvency Service,12/08/2016,Investigation and Enforcement Costs,INVESTIGATIONS & ENFORCEMENT                                                                        ,GOWLING WRAGGE LAWRENCE GRAHAM  & CO                        ,BA0000298408,189.60,858698838,
BIS,The Insolvency Service,12/08/2016,Investigation and Enforcement Costs,INVESTIGATIONS & ENFORCEMENT                                                                        ,GOWLING WRAGGE LAWRENCE GRAHAM  & CO                        ,BA0000298407,"2,803.80",858698838,
BIS,The Insolvency Service,12/08/2016,Investigation and Enforcement Costs,INVESTIGATIONS & ENFORCEMENT                                                                        ,GOWLING WRAGGE LAWRENCE GRAHAM  & CO                        ,BA0000298409,"4,130.50",858698838,
BIS,The Insolvency Service,12/08/2016,Investigation and Enforcement Costs,INVESTIGATIONS & ENFORCEMENT                                                                        ,GOWLING WRAGGE LAWRENCE GRAHAM  & CO                        ,BA0000298402,"4,822.48",858698838,
BIS,The Insolvency Service,08/08/2016,Accommodation,ESTATES,GVA                                                         ,BA0000298266,69.06,657719590,
BIS,The Insolvency Service,01/08/2016,Office Machinery,BUSINESS SERVICES DIRECTORATE                                                                       ,HAGUE COMPUTER SUPPLIES,BA0000298060,756.00,333613774,
BIS,The Insolvency Service,12/08/2016,Accounting and Banking,BUSINESS SERVICES DIRECTORATE                                                                       ,HAGUE COMPUTER SUPPLIES,BA0000298399,"9,498.00",333613774,
BIS,The Insolvency Service,04/08/2016,Agency Workers,INFORMATION TECHNOLOGY                                                                              ,HAYS SPECIALIST RECRUITMENT LTD,BA0000298200,"2,409.60",773695871,
BIS,The Insolvency Service,11/08/2016,Agency Workers,INFORMATION TECHNOLOGY                                                                              ,HAYS SPECIALIST RECRUITMENT LTD,BA0000298371,"3,012.00",773695871,
BIS,The Insolvency Service,18/08/2016,Agency Workers,INFORMATION TECHNOLOGY                                                                              ,HAYS SPECIALIST RECRUITMENT LTD,BA0000298627,"3,012.00",773695871,
BIS,The Insolvency Service,26/08/2016,Agency Workers,INFORMATION TECHNOLOGY                                                                              ,HAYS SPECIALIST RECRUITMENT LTD,BA0000298885,"3,012.00",773695871,
BIS,The Insolvency Service,10/08/2016,Accounting and Banking,BUSINESS SERVICES DIRECTORATE                                                                       ,HM TREASURY,BA0000298318,"16,750.00",888827544,
BIS,The Insolvency Service,10/08/2016,Accounting and Banking,BUSINESS SERVICES DIRECTORATE                                                                       ,HM TREASURY,BA0000298319,"16,750.00",888827544,
BIS,The Insolvency Service,01/08/2016,Investigation and Enforcement Costs,OFFICIAL RECEIVER SERVICES                                                                          ,HMCTS,BA0000298050,480.00,,
BIS,The Insolvency Service,16/08/2016,Investigation and Enforcement Costs,OFFICIAL RECEIVER SERVICES                                                                          ,HMCTS,BA0000298453,280.00,,
BIS,The Insolvency Service,16/08/2016,Investigation and Enforcement Costs,OFFICIAL RECEIVER SERVICES                                                                          ,HMCTS,BA0000298454,280.00,,
BIS,The Insolvency Service,17/08/2016,Investigation and Enforcement Costs,OFFICIAL RECEIVER SERVICES                                                                          ,HMCTS,BA0000298535,308.00,,
BIS,The Insolvency Service,22/08/2016,Investigation and Enforcement Costs,OFFICIAL RECEIVER SERVICES                                                                          ,HMCTS,BA0000298672,528.00,,
BIS,The Insolvency Service,22/08/2016,Investigation and Enforcement Costs,OFFICIAL RECEIVER SERVICES                                                                          ,HMCTS,BA0000298678,528.00,,
BIS,The Insolvency Service,24/08/2016,Investigation and Enforcement Costs,OFFICIAL RECEIVER SERVICES                                                                          ,HMCTS,BA0000298723,280.00,,
BIS,The Insolvency Service,24/08/2016,Investigation and Enforcement Costs,OFFICIAL RECEIVER SERVICES                                                                          ,HMCTS,BA0000298724,528.00,,
BIS,The Insolvency Service,26/08/2016,Investigation and Enforcement Costs,OFFICIAL RECEIVER SERVICES                                                                          ,HMCTS,BA0000298882,280.00,,
BIS,The Insolvency Service,26/08/2016,Investigation and Enforcement Costs,OFFICIAL RECEIVER SERVICES                                                                          ,HMCTS,BA0000298883,308.00,,
BIS,The Insolvency Service,26/08/2016,Investigation and Enforcement Costs,OFFICIAL RECEIVER SERVICES                                                                          ,HMCTS,BA0000298879,308.00,,
BIS,The Insolvency Service,26/08/2016,Investigation and Enforcement Costs,OFFICIAL RECEIVER SERVICES                                                                          ,HMCTS,BA0000298880,528.00,,
BIS,The Insolvency Service,16/08/2016,Investigation and Enforcement Costs,OFFICIAL RECEIVER SERVICES                                                                          ,HMCTS                                                       ,BA0000298452,280.00,,
BIS,The Insolvency Service,24/08/2016,Investigation and Enforcement Costs,OFFICIAL RECEIVER SERVICES                                                                          ,HMCTS                                                       ,BA0000298725,100.00,,
BIS,The Insolvency Service,04/08/2016,Office Supplies and Services,OFFICIAL RECEIVER SERVICES                                                                          ,HMRC,BA0000298214,42.00,888848141,
BIS,The Insolvency Service,15/08/2016,Accommodation,ESTATES,HMRC,BA0000298444,"36,122.51",888848141,
BIS,The Insolvency Service,15/08/2016,Accommodation,ESTATES,HMRC,BA0000298442,"31,524.81",888848141,
BIS,The Insolvency Service,15/08/2016,Accommodation,ESTATES,HMRC,BA0000298441,"29,440.06",888848141,
BIS,The Insolvency Service,10/08/2016,Investigation and Enforcement Costs,INVESTIGATIONS & ENFORCEMENT                                                                        ,HOWES PERCIVAL,BA0000298330,"3,034.00",119523573,
BIS,The Insolvency Service,10/08/2016,Investigation and Enforcement Costs,INVESTIGATIONS & ENFORCEMENT                                                                        ,HOWES PERCIVAL,BA0000298330,"54,994.43",119523573,
BIS,The Insolvency Service,10/08/2016,Investigation and Enforcement Costs,INVESTIGATIONS & ENFORCEMENT                                                                        ,HOWES PERCIVAL,BA0000298329,"2,931.70",119523573,
BIS,The Insolvency Service,10/08/2016,Investigation and Enforcement Costs,INVESTIGATIONS & ENFORCEMENT                                                                        ,HOWES PERCIVAL,BA0000298329,"15,840.00",119523573,
BIS,The Insolvency Service,10/08/2016,Investigation and Enforcement Costs,INVESTIGATIONS & ENFORCEMENT                                                                        ,HOWES PERCIVAL,BA0000298341,"2,052.80",119523573,
BIS,The Insolvency Service,11/08/2016,Investigation and Enforcement Costs,INVESTIGATIONS & ENFORCEMENT                                                                        ,HOWES PERCIVAL,BA0000298358,"15,570.90",119523573,
BIS,The Insolvency Service,11/08/2016,Investigation and Enforcement Costs,INVESTIGATIONS & ENFORCEMENT                                                                        ,HOWES PERCIVAL,BA0000298345,"3,505.85",119523573,
BIS,The Insolvency Service,11/08/2016,Investigation and Enforcement Costs,INVESTIGATIONS & ENFORCEMENT                                                                        ,HOWES PERCIVAL,BA0000298380,280.00,119523573,
BIS,The Insolvency Service,11/08/2016,Investigation and Enforcement Costs,INVESTIGATIONS & ENFORCEMENT                                                                        ,HOWES PERCIVAL,BA0000298380,"6,610.80",119523573,
BIS,The Insolvency Service,02/08/2016,Insolvency Case Related Costs,OFFICIAL RECEIVER SERVICES                                                                          ,HPI LTD,BA0000298122,3.64,942407139,
BIS,The Insolvency Service,08/08/2016,Insolvency Case Related Costs,OFFICIAL RECEIVER SERVICES                                                                          ,HPI LTD,BA0000298228,3.64,942407139,
BIS,The Insolvency Service,08/08/2016,Insolvency Case Related Costs,OFFICIAL RECEIVER SERVICES                                                                          ,HPI LTD,BA0000298267,7.07,942407139,
BIS,The Insolvency Service,11/08/2016,Insolvency Case Related Costs,OFFICIAL RECEIVER SERVICES                                                                          ,HPI LTD,BA0000298387,45.83,942407139,
BIS,The Insolvency Service,24/08/2016,Insolvency Case Related Costs,OFFICIAL RECEIVER SERVICES                                                                          ,HPI LTD,BA0000298793,8.50,942407139,
BIS,The Insolvency Service,25/08/2016,Insolvency Case Related Costs,OFFICIAL RECEIVER SERVICES                                                                          ,HPI LTD,BA0000298858,7.27,942407139,
BIS,The Insolvency Service,11/08/2016,Telecoms,OFFICIAL RECEIVER SERVICES                                                                          ,INSIGHT DIRECT (UK) LTD.,BA0000298372,239.20,746075129,
BIS,The Insolvency Service,11/08/2016,Telecoms,OFFICIAL RECEIVER SERVICES                                                                          ,INSIGHT DIRECT (UK) LTD.,BA0000298372,"1,004.25",746075129,
BIS,The Insolvency Service,15/08/2016,Telecoms,BUSINESS SERVICES DIRECTORATE                                                                       ,INSIGHT DIRECT (UK) LTD.,BA0000298434,762.72,746075129,
BIS,The Insolvency Service,26/08/2016,Telecoms,BUSINESS SERVICES DIRECTORATE                                                                       ,INSIGHT DIRECT (UK) LTD.,BA0000298876,220.80,746075129,
BIS,The Insolvency Service,12/08/2016,Insolvency Case Related Costs,FINANCE AND COMMERCIAL,INSOLVENCY SERVICE,BA0000298412,580.00,,
BIS,The Insolvency Service,16/08/2016,Insolvency Case Related Costs,FINANCE AND COMMERCIAL,INSOLVENCY SERVICE,BA0000298481,151.16,,
BIS,The Insolvency Service,09/08/2016,Accommodation,FINANCE AND COMMERCIAL                                                                              ,IRON MOUNTAIN (UK) LTD,BA0000298270,395.89,607937516,
BIS,The Insolvency Service,09/08/2016,Accommodation,FINANCE AND COMMERCIAL                                                                              ,IRON MOUNTAIN (UK) LTD,BA0000298270,"1,918.88",607937516,
BIS,The Insolvency Service,09/08/2016,Accommodation,FINANCE AND COMMERCIAL                                                                              ,IRON MOUNTAIN (UK) LTD,BA0000298270,"3,297.87",607937516,
BIS,The Insolvency Service,09/08/2016,Accommodation,FINANCE AND COMMERCIAL                                                                              ,IRON MOUNTAIN (UK) LTD,BA0000298270,"23,482.65",607937516,
BIS,The Insolvency Service,08/08/2016,Accommodation,ESTATES,JONES LANG LASALLE,BA0000298255,"5,850.00",245894718,
BIS,The Insolvency Service,01/08/2016,Agency Workers,INFORMATION TECHNOLOGY                                                                              ,JUMAR SOLUTIONS LTD                                         ,BA0000298052,"9,360.00",,
BIS,The Insolvency Service,17/08/2016,Translation Costs,FINANCE AND COMMERCIAL                                                                              ,K INTERNATIONAL PLC,BA0000298491,763.54,600413800,
BIS,The Insolvency Service,12/08/2016,Telecoms,OFFICIAL RECEIVER SERVICES                                                                          ,KCOM GROUP PLC,BA0000298410,82.00,647235137,
BIS,The Insolvency Service,12/08/2016,Telecoms,OFFICIAL RECEIVER SERVICES                                                                          ,KCOM GROUP PLC,BA0000298411,92.00,647235137,
BIS,The Insolvency Service,05/08/2016,Computer and IT Systems,INFORMATION TECHNOLOGY                                                                              ,KDS UK LTD,BA0000298223,"2,786.40",776463881,
BIS,The Insolvency Service,26/08/2016,Agency Workers,INFORMATION TECHNOLOGY                                                                              ,LA INTERNATIONAL COMPUTER CONSULTANTS LTD,BA0000298890,"6,912.00",,
BIS,The Insolvency Service,11/08/2016,Office Supplies and Services,OFFICIAL RECEIVER SERVICES                                                                          ,LEXISNEXIS UK (LEXISNEXIS BUTTERWORTHS),BA0000298378,206.20,730859520,
BIS,The Insolvency Service,09/08/2016,Computer and IT Systems,INFORMATION TECHNOLOGY                                                                              ,LUMESSE LEARNING LIMITED (PREVIOUSLY EDVANTAGE GB LTD),BA0000298273,"60,109.34",809595000,
BIS,The Insolvency Service,18/08/2016,Training Costs,P&C - Talent                                                                                        ,MANAGEMENT TRAINING SOLUTIONS LTD                           ,BA0000298624,54.00,,
BIS,The Insolvency Service,18/08/2016,Training Costs,P&C - Talent                                                                                        ,MANAGEMENT TRAINING SOLUTIONS LTD                           ,BA0000298624,995.00,,
BIS,The Insolvency Service,25/08/2016,Accommodation,ESTATES,MAXET HOUSE PROPERTIES LTD                                  ,BA0000298850,450.00,,
BIS,The Insolvency Service,25/08/2016,Accommodation,ESTATES,MAXET HOUSE PROPERTIES LTD                                  ,BA0000298856,450.00,,
BIS,The Insolvency Service,09/08/2016,Agency Workers,P&C - People Relations                                                                              ,MICHAEL PAGE INTERNATIONAL RECRUITMENT LTD,BA0000298299,787.45,354259936,
BIS,The Insolvency Service,23/08/2016,Agency Workers,P&C - People Relations                                                                              ,MICHAEL PAGE INTERNATIONAL RECRUITMENT LTD,BA0000298722,793.85,354259936,
BIS,The Insolvency Service,30/08/2016,Agency Workers,P&C - People Relations                                                                              ,MICHAEL PAGE INTERNATIONAL RECRUITMENT LTD,BA0000298944,845.06,354259936,
BIS,The Insolvency Service,12/08/2016,Accommodation,ESTATES,MIDDLESBROUGH COUNCIL                                       ,BA0000298415,256.92,734213854,
BIS,The Insolvency Service,15/08/2016,Accommodation,ESTATES,MIDDLESBROUGH COUNCIL                                       ,BA0000298447,324.92,734213854,
BIS,The Insolvency Service,17/08/2016,Accommodation,ESTATES,MIDDLESBROUGH COUNCIL                                       ,BA0000298523,344.70,734213854,
BIS,The Insolvency Service,16/08/2016,Computer and IT Systems,INFORMATION TECHNOLOGY                                                                              ,NEOPOST  LIMITED (LEASING),BA0000298459,"5,987.90",805644140,
BIS,The Insolvency Service,10/08/2016,Postage,INFORMATION TECHNOLOGY                                                                              ,NEOPOST LTD - FRANKING TOP UPS,BA0000298340,"5,000.00",,
BIS,The Insolvency Service,10/08/2016,Postage,OFFICIAL RECEIVER SERVICES                                                                          ,NEOPOST LTD - FRANKING TOP UPS,BA0000298339,500.00,,
BIS,The Insolvency Service,10/08/2016,Postage,OFFICIAL RECEIVER SERVICES                                                                          ,NEOPOST LTD - FRANKING TOP UPS,BA0000298339,500.00,,
BIS,The Insolvency Service,10/08/2016,Postage,OFFICIAL RECEIVER SERVICES                                                                          ,NEOPOST LTD - FRANKING TOP UPS,BA0000298339,950.00,,
BIS,The Insolvency Service,10/08/2016,Postage,OFFICIAL RECEIVER SERVICES                                                                          ,NEOPOST LTD - FRANKING TOP UPS,BA0000298339,"1,000.00",,
BIS,The Insolvency Service,10/08/2016,Postage,OFFICIAL RECEIVER SERVICES                                                                          ,NEOPOST LTD - FRANKING TOP UPS,BA0000298339,"1,000.00",,
BIS,The Insolvency Service,10/08/2016,Postage,OFFICIAL RECEIVER SERVICES                                                                          ,NEOPOST LTD - FRANKING TOP UPS,BA0000298340,200.00,,
BIS,The Insolvency Service,10/08/2016,Postage,OFFICIAL RECEIVER SERVICES                                                                          ,NEOPOST LTD - FRANKING TOP UPS,BA0000298340,450.00,,
BIS,The Insolvency Service,10/08/2016,Postage,OFFICIAL RECEIVER SERVICES                                                                          ,NEOPOST LTD - FRANKING TOP UPS,BA0000298340,500.00,,
BIS,The Insolvency Service,10/08/2016,Postage,OFFICIAL RECEIVER SERVICES                                                                          ,NEOPOST LTD - FRANKING TOP UPS,BA0000298340,500.00,,
BIS,The Insolvency Service,10/08/2016,Postage,OFFICIAL RECEIVER SERVICES                                                                          ,NEOPOST LTD - FRANKING TOP UPS,BA0000298340,500.00,,
BIS,The Insolvency Service,10/08/2016,Postage,OFFICIAL RECEIVER SERVICES                                                                          ,NEOPOST LTD - FRANKING TOP UPS,BA0000298340,700.00,,
BIS,The Insolvency Service,10/08/2016,Postage,OFFICIAL RECEIVER SERVICES                                                                          ,NEOPOST LTD - FRANKING TOP UPS,BA0000298340,800.00,,
BIS,The Insolvency Service,10/08/2016,Postage,OFFICIAL RECEIVER SERVICES                                                                          ,NEOPOST LTD - FRANKING TOP UPS,BA0000298340,"1,000.00",,
BIS,The Insolvency Service,10/08/2016,Postage,OFFICIAL RECEIVER SERVICES                                                                          ,NEOPOST LTD - FRANKING TOP UPS,BA0000298343,200.00,,
BIS,The Insolvency Service,10/08/2016,Postage,OFFICIAL RECEIVER SERVICES                                                                          ,NEOPOST LTD - FRANKING TOP UPS,BA0000298343,500.00,,
BIS,The Insolvency Service,10/08/2016,Postage,OFFICIAL RECEIVER SERVICES                                                                          ,NEOPOST LTD - FRANKING TOP UPS,BA0000298343,500.00,,
BIS,The Insolvency Service,10/08/2016,Postage,OFFICIAL RECEIVER SERVICES                                                                          ,NEOPOST LTD - FRANKING TOP UPS,BA0000298343,600.00,,
BIS,The Insolvency Service,10/08/2016,Postage,OFFICIAL RECEIVER SERVICES                                                                          ,NEOPOST LTD - FRANKING TOP UPS,BA0000298343,800.00,,
BIS,The Insolvency Service,10/08/2016,Postage,OFFICIAL RECEIVER SERVICES                                                                          ,NEOPOST LTD - FRANKING TOP UPS,BA0000298343,"1,000.00",,
BIS,The Insolvency Service,10/08/2016,Postage,OFFICIAL RECEIVER SERVICES                                                                          ,NEOPOST LTD - FRANKING TOP UPS,BA0000298343,"1,000.00",,
BIS,The Insolvency Service,10/08/2016,Postage,OFFICIAL RECEIVER SERVICES                                                                          ,NEOPOST LTD - FRANKING TOP UPS,BA0000298343,"1,000.00",,
BIS,The Insolvency Service,10/08/2016,Postage,OFFICIAL RECEIVER SERVICES                                                                          ,NEOPOST LTD - FRANKING TOP UPS,BA0000298343,"1,000.00",,
BIS,The Insolvency Service,23/08/2016,Postage,BUSINESS SERVICES DIRECTORATE                                                                       ,NEOPOST LTD - FRANKING TOP UPS,BA0000298719,800.00,,
BIS,The Insolvency Service,23/08/2016,Postage,INVESTIGATIONS & ENFORCEMENT                                                                        ,NEOPOST LTD - FRANKING TOP UPS,BA0000298719,200.00,,
BIS,The Insolvency Service,23/08/2016,Postage,OFFICIAL RECEIVER SERVICES                                                                          ,NEOPOST LTD - FRANKING TOP UPS,BA0000298719,200.00,,
BIS,The Insolvency Service,23/08/2016,Postage,OFFICIAL RECEIVER SERVICES                                                                          ,NEOPOST LTD - FRANKING TOP UPS,BA0000298719,450.00,,
BIS,The Insolvency Service,23/08/2016,Postage,OFFICIAL RECEIVER SERVICES                                                                          ,NEOPOST LTD - FRANKING TOP UPS,BA0000298719,500.00,,
BIS,The Insolvency Service,23/08/2016,Postage,OFFICIAL RECEIVER SERVICES                                                                          ,NEOPOST LTD - FRANKING TOP UPS,BA0000298719,500.00,,
BIS,The Insolvency Service,23/08/2016,Postage,OFFICIAL RECEIVER SERVICES                                                                          ,NEOPOST LTD - FRANKING TOP UPS,BA0000298719,600.00,,
BIS,The Insolvency Service,23/08/2016,Postage,OFFICIAL RECEIVER SERVICES                                                                          ,NEOPOST LTD - FRANKING TOP UPS,BA0000298719,700.00,,
BIS,The Insolvency Service,23/08/2016,Postage,OFFICIAL RECEIVER SERVICES                                                                          ,NEOPOST LTD - FRANKING TOP UPS,BA0000298719,"1,000.00",,
BIS,The Insolvency Service,11/08/2016,Computer and IT Systems,INFORMATION TECHNOLOGY                                                                              ,NINE TELECOM,BA0000298357,221.52,886132113,
BIS,The Insolvency Service,15/08/2016,Computer and IT Systems,INFORMATION TECHNOLOGY                                                                              ,NINE TELECOM,BA0000298438,732.60,886132113,
BIS,The Insolvency Service,24/08/2016,Accommodation,ESTATES,NORTHAMPTONSHIRE COUNTY COUNCIL,BA0000298780,301.00,,
BIS,The Insolvency Service,05/08/2016,Computer and IT Systems,BUSINESS SERVICES DIRECTORATE                                                                       ,NORTHGATE PUBLIC SERVICES (UK) LIMITED                      ,BA0000298220,264.61,207588545,
BIS,The Insolvency Service,17/08/2016,Employee Related Costs,INVESTIGATIONS & ENFORCEMENT                                                                        ,ONLINE ERGONOMICS,BA0000298489,42.90,807348719,
BIS,The Insolvency Service,04/08/2016,Postage,ESTATES,PARCELFORCE WORLDWIDE,BA0000298206,5.99,243170002,
BIS,The Insolvency Service,04/08/2016,Postage,OFFICIAL RECEIVER SERVICES                                                                          ,PARCELFORCE WORLDWIDE,BA0000298206,13.85,243170002,
BIS,The Insolvency Service,04/08/2016,Postage,OFFICIAL RECEIVER SERVICES                                                                          ,PARCELFORCE WORLDWIDE,BA0000298206,15.69,243170002,
BIS,The Insolvency Service,04/08/2016,Postage,OFFICIAL RECEIVER SERVICES                                                                          ,PARCELFORCE WORLDWIDE,BA0000298206,15.69,243170002,
BIS,The Insolvency Service,04/08/2016,Postage,OFFICIAL RECEIVER SERVICES                                                                          ,PARCELFORCE WORLDWIDE,BA0000298206,44.81,243170002,
BIS,The Insolvency Service,08/08/2016,Employee Related Costs,OFFICIAL RECEIVER SERVICES                                                                          ,POSTURITE (UK) LTD.,BA0000298264,657.72,,
BIS,The Insolvency Service,08/08/2016,Employee Related Costs,PEOPLE & CAPABILITY                                                                                 ,POSTURITE (UK) LTD.,BA0000298209,127.45,,
BIS,The Insolvency Service,24/08/2016,Employee Related Costs,BUSINESS SERVICES DIRECTORATE                                                                       ,POSTURITE (UK) LTD.,BA0000298790,820.40,,
BIS,The Insolvency Service,24/08/2016,Employee Related Costs,INVESTIGATIONS & ENFORCEMENT                                                                        ,POSTURITE (UK) LTD.,BA0000298791,925.68,,
BIS,The Insolvency Service,24/08/2016,Employee Related Costs,OFFICIAL RECEIVER SERVICES                                                                          ,POSTURITE (UK) LTD.,BA0000298792,869.74,,
BIS,The Insolvency Service,26/08/2016,Employee Related Costs,BUSINESS SERVICES DIRECTORATE                                                                       ,POSTURITE (UK) LTD.,BA0000298878,613.44,,
BIS,The Insolvency Service,16/08/2016,Professional Services,FINANCE AND COMMERCIAL                                                                              ,PUBLIC CHAIRS' FORUM                                        ,BA0000298487,"24,000.00",,
BIS,The Insolvency Service,11/08/2016,Agency Workers,PROJECTS                                                                                            ,REDROCK CONSULTING LTD                                      ,BA0000298368,"8,260.20",,
BIS,The Insolvency Service,02/08/2016,Employee Related Costs,P&C - People Relations                                                                              ,RIGHT CORECARE Ltd                                          ,BA0000298120,87.00,,
BIS,The Insolvency Service,02/08/2016,Employee Related Costs,P&C - People Relations                                                                              ,RIGHT CORECARE Ltd                                          ,BA0000298121,485.44,,
BIS,The Insolvency Service,04/08/2016,Employee Related Costs,PEOPLE & CAPABILITY                                                                                 ,RIGHT CORECARE Ltd                                          ,BA0000298212,546.34,,
BIS,The Insolvency Service,04/08/2016,Employee Related Costs,PEOPLE & CAPABILITY                                                                                 ,RIGHT CORECARE Ltd                                          ,BA0000298213,546.34,,
BIS,The Insolvency Service,02/08/2016,Postage,FINANCE AND COMMERCIAL                                                                              ,ROYAL MAIL,BA0000298103,"13,108.00",,
BIS,The Insolvency Service,10/08/2016,Postage,FINANCE AND COMMERCIAL                                                                              ,ROYAL MAIL,BA0000298335,"13,440.00",,
BIS,The Insolvency Service,01/08/2016,Postage,OFFICIAL RECEIVER SERVICES                                                                          ,ROYAL MAIL GROUP LTD,BA0000298034,327.04,243170002,
BIS,The Insolvency Service,05/08/2016,Postage,OFFICIAL RECEIVER SERVICES                                                                          ,ROYAL MAIL GROUP LTD,BA0000298219,131.97,243170002,
BIS,The Insolvency Service,05/08/2016,Postage,FINANCE AND COMMERCIAL                                                                              ,ROYAL MAIL GROUP LTD,BA0000298217,66.96,243170002,
BIS,The Insolvency Service,11/08/2016,Postage,OFFICIAL RECEIVER SERVICES                                                                          ,ROYAL MAIL GROUP LTD,BA0000298383,140.54,243170002,
BIS,The Insolvency Service,11/08/2016,Postage,FINANCE AND COMMERCIAL                                                                              ,ROYAL MAIL GROUP LTD,BA0000298346,108.08,243170002,
BIS,The Insolvency Service,11/08/2016,Postage,OFFICIAL RECEIVER SERVICES                                                                          ,ROYAL MAIL GROUP LTD,BA0000298379,83.33,243170002,
BIS,The Insolvency Service,19/08/2016,Postage,FINANCE AND COMMERCIAL                                                                              ,ROYAL MAIL GROUP LTD,BA0000298638,99.57,243170002,
BIS,The Insolvency Service,19/08/2016,Postage,FINANCE AND COMMERCIAL                                                                              ,ROYAL MAIL GROUP LTD,BA0000298638,"1,184.90",243170002,
BIS,The Insolvency Service,23/08/2016,Postage,OFFICIAL RECEIVER SERVICES                                                                          ,ROYAL MAIL GROUP LTD,BA0000298721,129.70,243170002,
BIS,The Insolvency Service,25/08/2016,Insolvency Case Related Costs,OFFICIAL RECEIVER SERVICES                                                                          ,ROYAL MAIL GROUP LTD,BA0000298859,9.94,243170002,
BIS,The Insolvency Service,26/08/2016,Insolvency Case Related Costs,OFFICIAL RECEIVER SERVICES                                                                          ,ROYAL MAIL GROUP LTD,BA0000298877,50.00,243170002,
BIS,The Insolvency Service,31/08/2016,Training Costs,FINANCE AND COMMERCIAL,RSS (SERVICES) LTD                                          ,BA0000298985,"3,346.88",,
BIS,The Insolvency Service,04/08/2016,Accommodation,ESTATES,SCOTTISH POWER,BA0000298186,568.81,659372008,
BIS,The Insolvency Service,17/08/2016,Accommodation,OFFICIAL RECEIVER SERVICES                                                                          ,SCOTTISH POWER,BA0000298522,219.90,659372008,
BIS,The Insolvency Service,17/08/2016,Investigation and Enforcement Costs,INVESTIGATIONS & ENFORCEMENT                                                                        ,SHEPHERD & WEDDERBURN WS (SCOTTISH CASES)                   ,BA0000298524,158.40,890559386,
BIS,The Insolvency Service,17/08/2016,Investigation and Enforcement Costs,INVESTIGATIONS & ENFORCEMENT                                                                        ,SHEPHERD & WEDDERBURN WS (SCOTTISH CASES)                   ,BA0000298530,"7,619.07",890559386,
BIS,The Insolvency Service,17/08/2016,Investigation and Enforcement Costs,INVESTIGATIONS & ENFORCEMENT                                                                        ,SHEPHERD & WEDDERBURN WS (SCOTTISH CASES)                   ,BA0000298524,"28,049.81",890559386,
BIS,The Insolvency Service,17/08/2016,Investigation and Enforcement Costs,INVESTIGATIONS & ENFORCEMENT                                                                        ,SHEPHERD & WEDDERBURN WS (SCOTTISH CASES)                   ,BA0000298530,"2,337.29",890559386,
BIS,The Insolvency Service,17/08/2016,Investigation and Enforcement Costs,INVESTIGATIONS & ENFORCEMENT                                                                        ,SHEPHERD & WEDDERBURN WS (SCOTTISH CASES)                   ,BA0000298524,"1,695.40",890559386,
BIS,The Insolvency Service,17/08/2016,Investigation and Enforcement Costs,INVESTIGATIONS & ENFORCEMENT                                                                        ,SHEPHERD & WEDDERBURN WS (SCOTTISH CASES)                   ,BA0000298524,"28,454.17",890559386,
BIS,The Insolvency Service,02/08/2016,Insolvency Case Related Costs,FINANCE AND COMMERCIAL                                                                              ,SIRS (EUROPE) LTD,BA0000298104,"11,010.00",990834974,
BIS,The Insolvency Service,17/08/2016,Computer and IT Systems,INFORMATION TECHNOLOGY                                                                              ,SSL247 LTD                                                  ,BA0000298499,243.54,,
BIS,The Insolvency Service,03/08/2016,Training Costs,P&C - People Relations                                                                              ,ST JOHN AMBULANCE shared accounting,BA0000298138,461.00,564883916,
BIS,The Insolvency Service,01/08/2016,Travel and Subsistence,FINANCE AND COMMERCIAL,Staff Payment,BA0000298057,62.10,,
BIS,The Insolvency Service,01/08/2016,Travel and Subsistence,FINANCE AND COMMERCIAL,Staff Payment,BA0000298057,147.60,,
BIS,The Insolvency Service,01/08/2016,Travel and Subsistence,BUSINESS SERVICES DIRECTORATE                                                                       ,Staff Payment,BA0000298058,48.00,,
BIS,The Insolvency Service,01/08/2016,Travel and Subsistence,BUSINESS SERVICES DIRECTORATE                                                                       ,Staff Payment,BA0000298058,20.00,,
BIS,The Insolvency Service,01/08/2016,Travel and Subsistence,FINANCE AND COMMERCIAL,Staff Payment,BA0000298057,14.47,,
BIS,The Insolvency Service,01/08/2016,Travel and Subsistence,FINANCE AND COMMERCIAL,Staff Payment,BA0000298058,21.90,,
BIS,The Insolvency Service,01/08/2016,Travel and Subsistence,FINANCE AND COMMERCIAL,Staff Payment,BA0000298058,2.40,,
BIS,The Insolvency Service,01/08/2016,Telecoms,INVESTIGATIONS & ENFORCEMENT                                                                        ,Staff Payment,BA0000298058,144.35,,
BIS,The Insolvency Service,01/08/2016,Travel and Subsistence,PEOPLE & CAPABILITY                                                                                 ,Staff Payment,BA0000298058,80.00,,
BIS,The Insolvency Service,01/08/2016,Travel and Subsistence,PEOPLE & CAPABILITY                                                                                 ,Staff Payment,BA0000298058,80.00,,
BIS,The Insolvency Service,01/08/2016,Travel and Subsistence,FINANCE AND COMMERCIAL                                                                              ,Staff Payment,BA0000298058,10.80,,
BIS,The Insolvency Service,01/08/2016,Travel and Subsistence,FINANCE AND COMMERCIAL                                                                              ,Staff Payment,BA0000298058,171.90,,
BIS,The Insolvency Service,01/08/2016,Travel and Subsistence,FINANCE AND COMMERCIAL                                                                              ,Staff Payment,BA0000298058,12.60,,
BIS,The Insolvency Service,01/08/2016,Travel and Subsistence,INVESTIGATIONS & ENFORCEMENT                                                                        ,Staff Payment,BA0000298058,4.90,,
BIS,The Insolvency Service,01/08/2016,Travel and Subsistence,INVESTIGATIONS & ENFORCEMENT                                                                        ,Staff Payment,BA0000298058,9.00,,
BIS,The Insolvency Service,01/08/2016,Travel and Subsistence,INVESTIGATIONS & ENFORCEMENT                                                                        ,Staff Payment,BA0000298058,5.20,,
BIS,The Insolvency Service,01/08/2016,Travel and Subsistence,INVESTIGATIONS & ENFORCEMENT                                                                        ,Staff Payment,BA0000298058,11.10,,
BIS,The Insolvency Service,01/08/2016,Travel and Subsistence,INVESTIGATIONS & ENFORCEMENT                                                                        ,Staff Payment,BA0000298058,2.40,,
BIS,The Insolvency Service,01/08/2016,Travel and Subsistence,INVESTIGATIONS & ENFORCEMENT                                                                        ,Staff Payment,BA0000298058,64.70,,
BIS,The Insolvency Service,01/08/2016,Travel and Subsistence,INVESTIGATIONS & ENFORCEMENT                                                                        ,Staff Payment,BA0000298058,15.00,,
BIS,The Insolvency Service,01/08/2016,Travel and Subsistence,OFFICIAL RECEIVER SERVICES                                                                          ,Staff Payment,BA0000298058,24.70,,
BIS,The Insolvency Service,01/08/2016,Travel and Subsistence,OFFICIAL RECEIVER SERVICES                                                                          ,Staff Payment,BA0000298058,7.20,,
BIS,The Insolvency Service,01/08/2016,Travel and Subsistence,OFFICIAL RECEIVER SERVICES                                                                          ,Staff Payment,BA0000298058,9.60,,
BIS,The Insolvency Service,01/08/2016,Travel and Subsistence,OFFICIAL RECEIVER SERVICES                                                                          ,Staff Payment,BA0000298058,12.50,,
BIS,The Insolvency Service,01/08/2016,Travel and Subsistence,PEOPLE & CAPABILITY                                                                                 ,Staff Payment,BA0000298057,2.60,,
BIS,The Insolvency Service,01/08/2016,Travel and Subsistence,BUSINESS SERVICES DIRECTORATE                                                                       ,Staff Payment,BA0000298058,3.66,,
BIS,The Insolvency Service,01/08/2016,Travel and Subsistence,BUSINESS SERVICES DIRECTORATE                                                                       ,Staff Payment,BA0000298058,97.00,,
BIS,The Insolvency Service,01/08/2016,Travel and Subsistence,BUSINESS SERVICES DIRECTORATE                                                                       ,Staff Payment,BA0000298058,18.34,,
BIS,The Insolvency Service,01/08/2016,Travel and Subsistence,BUSINESS SERVICES DIRECTORATE                                                                       ,Staff Payment,BA0000298058,130.50,,
BIS,The Insolvency Service,01/08/2016,Travel and Subsistence,BUSINESS SERVICES DIRECTORATE                                                                       ,Staff Payment,BA0000298058,110.70,,
BIS,The Insolvency Service,01/08/2016,Travel and Subsistence,BUSINESS SERVICES DIRECTORATE                                                                       ,Staff Payment,BA0000298058,8.50,,
BIS,The Insolvency Service,01/08/2016,Travel and Subsistence,INVESTIGATIONS & ENFORCEMENT                                                                        ,Staff Payment,BA0000298058,210.15,,
BIS,The Insolvency Service,01/08/2016,Travel and Subsistence,INVESTIGATIONS & ENFORCEMENT                                                                        ,Staff Payment,BA0000298058,9.00,,
BIS,The Insolvency Service,01/08/2016,Travel and Subsistence,INVESTIGATIONS & ENFORCEMENT                                                                        ,Staff Payment,BA0000298058,9.00,,
BIS,The Insolvency Service,01/08/2016,Travel and Subsistence,INVESTIGATIONS & ENFORCEMENT                                                                        ,Staff Payment,BA0000298058,26.70,,
BIS,The Insolvency Service,01/08/2016,Travel and Subsistence,INVESTIGATIONS & ENFORCEMENT                                                                        ,Staff Payment,BA0000298058,418.50,,
BIS,The Insolvency Service,01/08/2016,Travel and Subsistence,INVESTIGATIONS & ENFORCEMENT                                                                        ,Staff Payment,BA0000298058,25.20,,
BIS,The Insolvency Service,01/08/2016,Travel and Subsistence,INVESTIGATIONS & ENFORCEMENT                                                                        ,Staff Payment,BA0000298058,27.90,,
BIS,The Insolvency Service,01/08/2016,Travel and Subsistence,INVESTIGATIONS & ENFORCEMENT                                                                        ,Staff Payment,BA0000298058,102.60,,
BIS,The Insolvency Service,01/08/2016,Travel and Subsistence,INVESTIGATIONS & ENFORCEMENT                                                                        ,Staff Payment,BA0000298057,17.10,,
BIS,The Insolvency Service,01/08/2016,Travel and Subsistence,INVESTIGATIONS & ENFORCEMENT                                                                        ,Staff Payment,BA0000298057,79.50,,
BIS,The Insolvency Service,01/08/2016,Travel and Subsistence,OFFICIAL RECEIVER SERVICES                                                                          ,Staff Payment,BA0000298058,10.35,,
BIS,The Insolvency Service,01/08/2016,Travel and Subsistence,OFFICIAL RECEIVER SERVICES                                                                          ,Staff Payment,BA0000298058,3.40,,
BIS,The Insolvency Service,01/08/2016,Travel and Subsistence,OFFICIAL RECEIVER SERVICES                                                                          ,Staff Payment,BA0000298058,52.20,,
BIS,The Insolvency Service,01/08/2016,Travel and Subsistence,OFFICIAL RECEIVER SERVICES                                                                          ,Staff Payment,BA0000298058,63.00,,
BIS,The Insolvency Service,01/08/2016,Travel and Subsistence,OFFICIAL RECEIVER SERVICES                                                                          ,Staff Payment,BA0000298058,39.60,,
BIS,The Insolvency Service,01/08/2016,Travel and Subsistence,OFFICIAL RECEIVER SERVICES                                                                          ,Staff Payment,BA0000298058,0.90,,
BIS,The Insolvency Service,01/08/2016,Travel and Subsistence,OFFICIAL RECEIVER SERVICES                                                                          ,Staff Payment,BA0000298058,3.60,,
BIS,The Insolvency Service,01/08/2016,Travel and Subsistence,OFFICIAL RECEIVER SERVICES                                                                          ,Staff Payment,BA0000298058,4.00,,
BIS,The Insolvency Service,01/08/2016,Travel and Subsistence,OFFICIAL RECEIVER SERVICES                                                                          ,Staff Payment,BA0000298058,5.00,,
BIS,The Insolvency Service,01/08/2016,Travel and Subsistence,OFFICIAL RECEIVER SERVICES                                                                          ,Staff Payment,BA0000298058,5.00,,
BIS,The Insolvency Service,01/08/2016,Travel and Subsistence,OFFICIAL RECEIVER SERVICES                                                                          ,Staff Payment,BA0000298057,37.80,,
BIS,The Insolvency Service,01/08/2016,Travel and Subsistence,OFFICIAL RECEIVER SERVICES                                                                          ,Staff Payment,BA0000298058,1.00,,
BIS,The Insolvency Service,01/08/2016,Travel and Subsistence,OFFICIAL RECEIVER SERVICES                                                                          ,Staff Payment,BA0000298058,21.60,,
BIS,The Insolvency Service,01/08/2016,Travel and Subsistence,OFFICIAL RECEIVER SERVICES                                                                          ,Staff Payment,BA0000298058,37.80,,
BIS,The Insolvency Service,01/08/2016,Travel and Subsistence,OFFICIAL RECEIVER SERVICES                                                                          ,Staff Payment,BA0000298058,3.50,,
BIS,The Insolvency Service,01/08/2016,Travel and Subsistence,OFFICIAL RECEIVER SERVICES                                                                          ,Staff Payment,BA0000298058,40.50,,
BIS,The Insolvency Service,01/08/2016,Travel and Subsistence,OFFICIAL RECEIVER SERVICES                                                                          ,Staff Payment,BA0000298058,8.10,,
BIS,The Insolvency Service,01/08/2016,Travel and Subsistence,OFFICIAL RECEIVER SERVICES                                                                          ,Staff Payment,BA0000298058,3.00,,
BIS,The Insolvency Service,01/08/2016,Travel and Subsistence,OFFICIAL RECEIVER SERVICES                                                                          ,Staff Payment,BA0000298058,4.50,,
BIS,The Insolvency Service,01/08/2016,Travel and Subsistence,OFFICIAL RECEIVER SERVICES                                                                          ,Staff Payment,BA0000298058,1.00,,
BIS,The Insolvency Service,01/08/2016,Travel and Subsistence,OFFICIAL RECEIVER SERVICES                                                                          ,Staff Payment,BA0000298058,32.40,,
BIS,The Insolvency Service,01/08/2016,Travel and Subsistence,OFFICIAL RECEIVER SERVICES                                                                          ,Staff Payment,BA0000298058,50.50,,
BIS,The Insolvency Service,01/08/2016,Travel and Subsistence,OFFICIAL RECEIVER SERVICES                                                                          ,Staff Payment,BA0000298058,40.50,,
BIS,The Insolvency Service,01/08/2016,Travel and Subsistence,OFFICIAL RECEIVER SERVICES                                                                          ,Staff Payment,BA0000298058,6.30,,
BIS,The Insolvency Service,01/08/2016,Travel and Subsistence,OFFICIAL RECEIVER SERVICES                                                                          ,Staff Payment,BA0000298058,6.40,,
BIS,The Insolvency Service,01/08/2016,Travel and Subsistence,OFFICIAL RECEIVER SERVICES                                                                          ,Staff Payment,BA0000298058,65.25,,
BIS,The Insolvency Service,01/08/2016,Travel and Subsistence,OFFICIAL RECEIVER SERVICES                                                                          ,Staff Payment,BA0000298058,17.66,,
BIS,The Insolvency Service,01/08/2016,Travel and Subsistence,OFFICIAL RECEIVER SERVICES                                                                          ,Staff Payment,BA0000298058,5.00,,
BIS,The Insolvency Service,01/08/2016,Travel and Subsistence,OFFICIAL RECEIVER SERVICES                                                                          ,Staff Payment,BA0000298058,39.60,,
BIS,The Insolvency Service,01/08/2016,Travel and Subsistence,OFFICIAL RECEIVER SERVICES                                                                          ,Staff Payment,BA0000298058,5.00,,
BIS,The Insolvency Service,01/08/2016,Travel and Subsistence,PEOPLE & CAPABILITY                                                                                 ,Staff Payment,BA0000298057,2.25,,
BIS,The Insolvency Service,01/08/2016,Travel and Subsistence,PEOPLE & CAPABILITY                                                                                 ,Staff Payment,BA0000298058,10.50,,
BIS,The Insolvency Service,01/08/2016,Travel and Subsistence,INVESTIGATIONS & ENFORCEMENT                                                                        ,Staff Payment,BA0000298058,9.20,,
BIS,The Insolvency Service,01/08/2016,Travel and Subsistence,INVESTIGATIONS & ENFORCEMENT                                                                        ,Staff Payment,BA0000298058,5.00,,
BIS,The Insolvency Service,01/08/2016,Travel and Subsistence,OFFICIAL RECEIVER SERVICES                                                                          ,Staff Payment,BA0000298058,6.50,,
BIS,The Insolvency Service,01/08/2016,Travel and Subsistence,OFFICIAL RECEIVER SERVICES                                                                          ,Staff Payment,BA0000298058,13.00,,
BIS,The Insolvency Service,01/08/2016,Travel and Subsistence,PEOPLE & CAPABILITY                                                                                 ,Staff Payment,BA0000298057,10.00,,
BIS,The Insolvency Service,01/08/2016,Travel and Subsistence,PEOPLE & CAPABILITY                                                                                 ,Staff Payment,BA0000298057,16.00,,
BIS,The Insolvency Service,01/08/2016,Travel and Subsistence,PEOPLE & CAPABILITY                                                                                 ,Staff Payment,BA0000298058,7.20,,
BIS,The Insolvency Service,01/08/2016,Travel and Subsistence,PEOPLE & CAPABILITY                                                                                 ,Staff Payment,BA0000298058,11.00,,
BIS,The Insolvency Service,01/08/2016,Travel and Subsistence,BUSINESS SERVICES DIRECTORATE                                                                       ,Staff Payment,BA0000298057,15.00,,
BIS,The Insolvency Service,01/08/2016,Travel and Subsistence,BUSINESS SERVICES DIRECTORATE                                                                       ,Staff Payment,BA0000298058,20.00,,
BIS,The Insolvency Service,01/08/2016,Travel and Subsistence,BUSINESS SERVICES DIRECTORATE                                                                       ,Staff Payment,BA0000298058,20.00,,
BIS,The Insolvency Service,01/08/2016,Travel and Subsistence,BUSINESS SERVICES DIRECTORATE                                                                       ,Staff Payment,BA0000298058,25.00,,
BIS,The Insolvency Service,01/08/2016,Travel and Subsistence,BUSINESS SERVICES DIRECTORATE                                                                       ,Staff Payment,BA0000298058,7.49,,
BIS,The Insolvency Service,01/08/2016,Travel and Subsistence,FINANCE AND COMMERCIAL                                                                              ,Staff Payment,BA0000298058,7.15,,
BIS,The Insolvency Service,01/08/2016,Travel and Subsistence,FINANCE AND COMMERCIAL                                                                              ,Staff Payment,BA0000298058,3.00,,
BIS,The Insolvency Service,01/08/2016,Travel and Subsistence,FINANCE AND COMMERCIAL                                                                              ,Staff Payment,BA0000298058,150.40,,
BIS,The Insolvency Service,01/08/2016,Travel and Subsistence,FINANCE AND COMMERCIAL                                                                              ,Staff Payment,BA0000298058,53.10,,
BIS,The Insolvency Service,01/08/2016,Travel and Subsistence,INVESTIGATIONS & ENFORCEMENT                                                                        ,Staff Payment,BA0000298058,94.83,,
BIS,The Insolvency Service,01/08/2016,Travel and Subsistence,INVESTIGATIONS & ENFORCEMENT                                                                        ,Staff Payment,BA0000298058,5.00,,
BIS,The Insolvency Service,01/08/2016,Travel and Subsistence,INVESTIGATIONS & ENFORCEMENT                                                                        ,Staff Payment,BA0000298058,3.00,,
BIS,The Insolvency Service,01/08/2016,Travel and Subsistence,INVESTIGATIONS & ENFORCEMENT                                                                        ,Staff Payment,BA0000298058,22.98,,
BIS,The Insolvency Service,01/08/2016,Travel and Subsistence,INVESTIGATIONS & ENFORCEMENT                                                                        ,Staff Payment,BA0000298058,5.00,,
BIS,The Insolvency Service,01/08/2016,Travel and Subsistence,INVESTIGATIONS & ENFORCEMENT                                                                        ,Staff Payment,BA0000298058,33.00,,
BIS,The Insolvency Service,01/08/2016,Travel and Subsistence,INVESTIGATIONS & ENFORCEMENT                                                                        ,Staff Payment,BA0000298058,14.80,,
BIS,The Insolvency Service,01/08/2016,Travel and Subsistence,INVESTIGATIONS & ENFORCEMENT                                                                        ,Staff Payment,BA0000298058,5.00,,
BIS,The Insolvency Service,01/08/2016,Travel and Subsistence,INVESTIGATIONS & ENFORCEMENT                                                                        ,Staff Payment,BA0000298058,29.50,,
BIS,The Insolvency Service,01/08/2016,Travel and Subsistence,OFFICIAL RECEIVER SERVICES                                                                          ,Staff Payment,BA0000298058,3.99,,
BIS,The Insolvency Service,01/08/2016,Travel and Subsistence,OFFICIAL RECEIVER SERVICES                                                                          ,Staff Payment,BA0000298057,3.79,,
BIS,The Insolvency Service,01/08/2016,Travel and Subsistence,OFFICIAL RECEIVER SERVICES                                                                          ,Staff Payment,BA0000298058,4.00,,
BIS,The Insolvency Service,01/08/2016,Travel and Subsistence,OFFICIAL RECEIVER SERVICES                                                                          ,Staff Payment,BA0000298058,40.93,,
BIS,The Insolvency Service,01/08/2016,Travel and Subsistence,OFFICIAL RECEIVER SERVICES                                                                          ,Staff Payment,BA0000298058,41.20,,
BIS,The Insolvency Service,01/08/2016,Travel and Subsistence,OFFICIAL RECEIVER SERVICES                                                                          ,Staff Payment,BA0000298058,5.00,,
BIS,The Insolvency Service,01/08/2016,Travel and Subsistence,OFFICIAL RECEIVER SERVICES                                                                          ,Staff Payment,BA0000298058,5.00,,
BIS,The Insolvency Service,01/08/2016,Travel and Subsistence,OFFICIAL RECEIVER SERVICES                                                                          ,Staff Payment,BA0000298058,4.89,,
BIS,The Insolvency Service,01/08/2016,Travel and Subsistence,OFFICIAL RECEIVER SERVICES                                                                          ,Staff Payment,BA0000298058,3.50,,
BIS,The Insolvency Service,01/08/2016,Travel and Subsistence,OFFICIAL RECEIVER SERVICES                                                                          ,Staff Payment,BA0000298058,5.00,,
BIS,The Insolvency Service,01/08/2016,Travel and Subsistence,OFFICIAL RECEIVER SERVICES                                                                          ,Staff Payment,BA0000298058,10.00,,
BIS,The Insolvency Service,01/08/2016,Travel and Subsistence,OFFICIAL RECEIVER SERVICES                                                                          ,Staff Payment,BA0000298058,20.72,,
BIS,The Insolvency Service,01/08/2016,Travel and Subsistence,OFFICIAL RECEIVER SERVICES                                                                          ,Staff Payment,BA0000298058,5.00,,
BIS,The Insolvency Service,01/08/2016,Travel and Subsistence,OFFICIAL RECEIVER SERVICES                                                                          ,Staff Payment,BA0000298058,8.55,,
BIS,The Insolvency Service,01/08/2016,Travel and Subsistence,OFFICIAL RECEIVER SERVICES                                                                          ,Staff Payment,BA0000298058,5.00,,
BIS,The Insolvency Service,01/08/2016,Travel and Subsistence,PEOPLE & CAPABILITY                                                                                 ,Staff Payment,BA0000298057,11.99,,
BIS,The Insolvency Service,01/08/2016,Travel and Subsistence,PEOPLE & CAPABILITY                                                                                 ,Staff Payment,BA0000298057,15.00,,
BIS,The Insolvency Service,01/08/2016,Travel and Subsistence,PEOPLE & CAPABILITY                                                                                 ,Staff Payment,BA0000298057,5.00,,
BIS,The Insolvency Service,01/08/2016,Travel and Subsistence,PEOPLE & CAPABILITY                                                                                 ,Staff Payment,BA0000298058,16.37,,
BIS,The Insolvency Service,01/08/2016,Travel and Subsistence,PEOPLE & CAPABILITY                                                                                 ,Staff Payment,BA0000298058,10.00,,
BIS,The Insolvency Service,01/08/2016,Travel and Subsistence,PEOPLE & CAPABILITY                                                                                 ,Staff Payment,BA0000298058,17.80,,
BIS,The Insolvency Service,01/08/2016,Travel and Subsistence,PEOPLE & CAPABILITY                                                                                 ,Staff Payment,BA0000298058,12.00,,
BIS,The Insolvency Service,01/08/2016,Insolvency Case Related Costs,INVESTIGATIONS & ENFORCEMENT                                                                        ,Staff Payment,BA0000298058,12.00,,
BIS,The Insolvency Service,01/08/2016,Insolvency Case Related Costs,INVESTIGATIONS & ENFORCEMENT                                                                        ,Staff Payment,BA0000298058,7.00,,
BIS,The Insolvency Service,03/08/2016,Travel and Subsistence,FINANCE AND COMMERCIAL,Staff Payment,BA0000298184,14.95,,
BIS,The Insolvency Service,03/08/2016,Travel and Subsistence,FINANCE AND COMMERCIAL,Staff Payment,BA0000298184,4.70,,
BIS,The Insolvency Service,03/08/2016,Travel and Subsistence,FINANCE AND COMMERCIAL,Staff Payment,BA0000298184,4.00,,
BIS,The Insolvency Service,03/08/2016,Travel and Subsistence,OFFICIAL RECEIVER SERVICES                                                                          ,Staff Payment,BA0000298184,4.90,,
BIS,The Insolvency Service,03/08/2016,Travel and Subsistence,OFFICIAL RECEIVER SERVICES                                                                          ,Staff Payment,BA0000298184,6.00,,
BIS,The Insolvency Service,03/08/2016,Travel and Subsistence,OFFICIAL RECEIVER SERVICES                                                                          ,Staff Payment,BA0000298184,36.00,,
BIS,The Insolvency Service,03/08/2016,Travel and Subsistence,OFFICIAL RECEIVER SERVICES                                                                          ,Staff Payment,BA0000298184,30.00,,
BIS,The Insolvency Service,03/08/2016,Travel and Subsistence,OFFICIAL RECEIVER SERVICES                                                                          ,Staff Payment,BA0000298184,14.40,,
BIS,The Insolvency Service,03/08/2016,Travel and Subsistence,OFFICIAL RECEIVER SERVICES                                                                          ,Staff Payment,BA0000298184,265.95,,
BIS,The Insolvency Service,03/08/2016,Travel and Subsistence,OFFICIAL RECEIVER SERVICES                                                                          ,Staff Payment,BA0000298184,10.00,,
BIS,The Insolvency Service,03/08/2016,Travel and Subsistence,OFFICIAL RECEIVER SERVICES                                                                          ,Staff Payment,BA0000298184,2.00,,
BIS,The Insolvency Service,03/08/2016,Travel and Subsistence,OFFICIAL RECEIVER SERVICES                                                                          ,Staff Payment,BA0000298184,15.30,,
BIS,The Insolvency Service,03/08/2016,Travel and Subsistence,PEOPLE & CAPABILITY                                                                                 ,Staff Payment,BA0000298184,5.00,,
BIS,The Insolvency Service,03/08/2016,Travel and Subsistence,BUSINESS SERVICES DIRECTORATE                                                                       ,Staff Payment,BA0000298184,31.40,,
BIS,The Insolvency Service,03/08/2016,Travel and Subsistence,FINANCE AND COMMERCIAL,Staff Payment,BA0000298184,18.20,,
BIS,The Insolvency Service,03/08/2016,Travel and Subsistence,FINANCE AND COMMERCIAL,Staff Payment,BA0000298184,16.93,,
BIS,The Insolvency Service,03/08/2016,Travel and Subsistence,FINANCE AND COMMERCIAL,Staff Payment,BA0000298184,2.65,,
BIS,The Insolvency Service,03/08/2016,Travel and Subsistence,OFFICIAL RECEIVER SERVICES                                                                          ,Staff Payment,BA0000298184,28.70,,
BIS,The Insolvency Service,03/08/2016,Travel and Subsistence,OFFICIAL RECEIVER SERVICES                                                                          ,Staff Payment,BA0000298184,51.75,,
BIS,The Insolvency Service,03/08/2016,Travel and Subsistence,OFFICIAL RECEIVER SERVICES                                                                          ,Staff Payment,BA0000298184,4.95,,
BIS,The Insolvency Service,03/08/2016,Travel and Subsistence,OFFICIAL RECEIVER SERVICES                                                                          ,Staff Payment,BA0000298184,26.70,,
BIS,The Insolvency Service,03/08/2016,Travel and Subsistence,OFFICIAL RECEIVER SERVICES                                                                          ,Staff Payment,BA0000298184,5.00,,
BIS,The Insolvency Service,03/08/2016,Travel and Subsistence,OFFICIAL RECEIVER SERVICES                                                                          ,Staff Payment,BA0000298184,48.60,,
BIS,The Insolvency Service,03/08/2016,Travel and Subsistence,OFFICIAL RECEIVER SERVICES                                                                          ,Staff Payment,BA0000298184,4.00,,
BIS,The Insolvency Service,03/08/2016,Travel and Subsistence,OFFICIAL RECEIVER SERVICES                                                                          ,Staff Payment,BA0000298184,25.00,,
BIS,The Insolvency Service,03/08/2016,Travel and Subsistence,PEOPLE & CAPABILITY                                                                                 ,Staff Payment,BA0000298184,5.00,,
BIS,The Insolvency Service,04/08/2016,Travel and Subsistence,FINANCE AND COMMERCIAL,Staff Payment,BA0000298201,24.50,,
BIS,The Insolvency Service,04/08/2016,Travel and Subsistence,FINANCE AND COMMERCIAL,Staff Payment,BA0000298201,30.75,,
BIS,The Insolvency Service,04/08/2016,Travel and Subsistence,FINANCE AND COMMERCIAL,Staff Payment,BA0000298201,38.34,,
BIS,The Insolvency Service,04/08/2016,Travel and Subsistence,FINANCE AND COMMERCIAL,Staff Payment,BA0000298201,41.90,,
BIS,The Insolvency Service,04/08/2016,Travel and Subsistence,INVESTIGATIONS & ENFORCEMENT                                                                        ,Staff Payment,BA0000298201,1.30,,
BIS,The Insolvency Service,04/08/2016,Travel and Subsistence,INVESTIGATIONS & ENFORCEMENT                                                                        ,Staff Payment,BA0000298201,42.30,,
BIS,The Insolvency Service,04/08/2016,Travel and Subsistence,OFFICIAL RECEIVER SERVICES                                                                          ,Staff Payment,BA0000298201,3.00,,
BIS,The Insolvency Service,04/08/2016,Travel and Subsistence,OFFICIAL RECEIVER SERVICES                                                                          ,Staff Payment,BA0000298201,27.00,,
BIS,The Insolvency Service,04/08/2016,Travel and Subsistence,OFFICIAL RECEIVER SERVICES                                                                          ,Staff Payment,BA0000298201,83.00,,
BIS,The Insolvency Service,04/08/2016,Travel and Subsistence,OFFICIAL RECEIVER SERVICES                                                                          ,Staff Payment,BA0000298201,3.00,,
BIS,The Insolvency Service,04/08/2016,Travel and Subsistence,OFFICIAL RECEIVER SERVICES                                                                          ,Staff Payment,BA0000298201,27.00,,
BIS,The Insolvency Service,04/08/2016,Travel and Subsistence,OFFICIAL RECEIVER SERVICES                                                                          ,Staff Payment,BA0000298201,81.45,,
BIS,The Insolvency Service,04/08/2016,Travel and Subsistence,OFFICIAL RECEIVER SERVICES                                                                          ,Staff Payment,BA0000298201,3.00,,
BIS,The Insolvency Service,04/08/2016,Travel and Subsistence,OFFICIAL RECEIVER SERVICES                                                                          ,Staff Payment,BA0000298201,27.00,,
BIS,The Insolvency Service,04/08/2016,Travel and Subsistence,INVESTIGATIONS & ENFORCEMENT                                                                        ,Staff Payment,BA0000298201,95.00,,
BIS,The Insolvency Service,04/08/2016,Travel and Subsistence,FINANCE AND COMMERCIAL,Staff Payment,BA0000298201,15.00,,
BIS,The Insolvency Service,04/08/2016,Travel and Subsistence,INVESTIGATIONS & ENFORCEMENT                                                                        ,Staff Payment,BA0000298201,27.30,,
BIS,The Insolvency Service,04/08/2016,Travel and Subsistence,INVESTIGATIONS & ENFORCEMENT                                                                        ,Staff Payment,BA0000298201,5.00,,
BIS,The Insolvency Service,04/08/2016,Travel and Subsistence,INVESTIGATIONS & ENFORCEMENT                                                                        ,Staff Payment,BA0000298201,4.99,,
BIS,The Insolvency Service,04/08/2016,Travel and Subsistence,OFFICIAL RECEIVER SERVICES                                                                          ,Staff Payment,BA0000298201,5.00,,
BIS,The Insolvency Service,04/08/2016,Travel and Subsistence,OFFICIAL RECEIVER SERVICES                                                                          ,Staff Payment,BA0000298201,5.00,,
BIS,The Insolvency Service,04/08/2016,Travel and Subsistence,OFFICIAL RECEIVER SERVICES                                                                          ,Staff Payment,BA0000298201,5.00,,
BIS,The Insolvency Service,04/08/2016,Travel and Subsistence,OFFICIAL RECEIVER SERVICES                                                                          ,Staff Payment,BA0000298201,5.00,,
BIS,The Insolvency Service,04/08/2016,Travel and Subsistence,OFFICIAL RECEIVER SERVICES                                                                          ,Staff Payment,BA0000298201,4.91,,
BIS,The Insolvency Service,04/08/2016,Travel and Subsistence,OFFICIAL RECEIVER SERVICES                                                                          ,Staff Payment,BA0000298201,4.28,,
BIS,The Insolvency Service,05/08/2016,Travel and Subsistence,OFFICIAL RECEIVER SERVICES                                                                          ,Staff Payment,BA0000298225,1.63,,
BIS,The Insolvency Service,05/08/2016,Employee Related Costs,OFFICIAL RECEIVER SERVICES                                                                          ,Staff Payment,BA0000298225,8.15,,
BIS,The Insolvency Service,05/08/2016,Travel and Subsistence,BUSINESS SERVICES DIRECTORATE                                                                       ,Staff Payment,BA0000298225,11.00,,
BIS,The Insolvency Service,05/08/2016,Travel and Subsistence,BUSINESS SERVICES DIRECTORATE                                                                       ,Staff Payment,BA0000298225,12.10,,
BIS,The Insolvency Service,05/08/2016,Travel and Subsistence,BUSINESS SERVICES DIRECTORATE                                                                       ,Staff Payment,BA0000298225,12.10,,
BIS,The Insolvency Service,05/08/2016,Travel and Subsistence,OFFICIAL RECEIVER SERVICES                                                                          ,Staff Payment,BA0000298225,12.40,,
BIS,The Insolvency Service,05/08/2016,Travel and Subsistence,CUSTOMER AND COMMUNICATIONS                                                                         ,Staff Payment,BA0000298225,8.50,,
BIS,The Insolvency Service,05/08/2016,Travel and Subsistence,OFFICIAL RECEIVER SERVICES                                                                          ,Staff Payment,BA0000298225,2.00,,
BIS,The Insolvency Service,05/08/2016,Travel and Subsistence,OFFICIAL RECEIVER SERVICES                                                                          ,Staff Payment,BA0000298225,8.55,,
BIS,The Insolvency Service,05/08/2016,Travel and Subsistence,OFFICIAL RECEIVER SERVICES                                                                          ,Staff Payment,BA0000298225,2.50,,
BIS,The Insolvency Service,05/08/2016,Travel and Subsistence,OFFICIAL RECEIVER SERVICES                                                                          ,Staff Payment,BA0000298225,38.25,,
BIS,The Insolvency Service,05/08/2016,Travel and Subsistence,OFFICIAL RECEIVER SERVICES                                                                          ,Staff Payment,BA0000298225,2.70,,
BIS,The Insolvency Service,05/08/2016,Travel and Subsistence,OFFICIAL RECEIVER SERVICES                                                                          ,Staff Payment,BA0000298225,37.35,,
BIS,The Insolvency Service,05/08/2016,Travel and Subsistence,OFFICIAL RECEIVER SERVICES                                                                          ,Staff Payment,BA0000298225,2.25,,
BIS,The Insolvency Service,05/08/2016,Travel and Subsistence,OFFICIAL RECEIVER SERVICES                                                                          ,Staff Payment,BA0000298225,7.50,,
BIS,The Insolvency Service,05/08/2016,Travel and Subsistence,OFFICIAL RECEIVER SERVICES                                                                          ,Staff Payment,BA0000298225,9.50,,
BIS,The Insolvency Service,05/08/2016,Travel and Subsistence,OFFICIAL RECEIVER SERVICES                                                                          ,Staff Payment,BA0000298225,15.30,,
BIS,The Insolvency Service,05/08/2016,Travel and Subsistence,OFFICIAL RECEIVER SERVICES                                                                          ,Staff Payment,BA0000298225,6.70,,
BIS,The Insolvency Service,05/08/2016,Travel and Subsistence,OFFICIAL RECEIVER SERVICES                                                                          ,Staff Payment,BA0000298225,54.00,,
BIS,The Insolvency Service,05/08/2016,Travel and Subsistence,OFFICIAL RECEIVER SERVICES                                                                          ,Staff Payment,BA0000298225,1.50,,
BIS,The Insolvency Service,05/08/2016,Travel and Subsistence,OFFICIAL RECEIVER SERVICES                                                                          ,Staff Payment,BA0000298225,26.55,,
BIS,The Insolvency Service,05/08/2016,Travel and Subsistence,OFFICIAL RECEIVER SERVICES                                                                          ,Staff Payment,BA0000298225,16.65,,
BIS,The Insolvency Service,05/08/2016,Travel and Subsistence,OFFICIAL RECEIVER SERVICES                                                                          ,Staff Payment,BA0000298225,4.20,,
BIS,The Insolvency Service,05/08/2016,Travel and Subsistence,OFFICIAL RECEIVER SERVICES                                                                          ,Staff Payment,BA0000298225,50.00,,
BIS,The Insolvency Service,05/08/2016,Travel and Subsistence,OFFICIAL RECEIVER SERVICES                                                                          ,Staff Payment,BA0000298225,3.50,,
BIS,The Insolvency Service,05/08/2016,Travel and Subsistence,OFFICIAL RECEIVER SERVICES                                                                          ,Staff Payment,BA0000298225,29.70,,
BIS,The Insolvency Service,05/08/2016,Travel and Subsistence,OFFICIAL RECEIVER SERVICES                                                                          ,Staff Payment,BA0000298225,20.70,,
BIS,The Insolvency Service,05/08/2016,Travel and Subsistence,BUSINESS SERVICES DIRECTORATE                                                                       ,Staff Payment,BA0000298225,6.00,,
BIS,The Insolvency Service,05/08/2016,Travel and Subsistence,BUSINESS SERVICES DIRECTORATE                                                                       ,Staff Payment,BA0000298225,8.00,,
BIS,The Insolvency Service,05/08/2016,Travel and Subsistence,BUSINESS SERVICES DIRECTORATE                                                                       ,Staff Payment,BA0000298225,5.00,,
BIS,The Insolvency Service,05/08/2016,Travel and Subsistence,BUSINESS SERVICES DIRECTORATE                                                                       ,Staff Payment,BA0000298225,5.00,,
BIS,The Insolvency Service,05/08/2016,Travel and Subsistence,BUSINESS SERVICES DIRECTORATE                                                                       ,Staff Payment,BA0000298225,33.38,,
BIS,The Insolvency Service,05/08/2016,Travel and Subsistence,BUSINESS SERVICES DIRECTORATE                                                                       ,Staff Payment,BA0000298225,29.75,,
BIS,The Insolvency Service,05/08/2016,Travel and Subsistence,BUSINESS SERVICES DIRECTORATE                                                                       ,Staff Payment,BA0000298225,29.00,,
BIS,The Insolvency Service,05/08/2016,Travel and Subsistence,BUSINESS SERVICES DIRECTORATE                                                                       ,Staff Payment,BA0000298225,5.00,,
BIS,The Insolvency Service,05/08/2016,Travel and Subsistence,BUSINESS SERVICES DIRECTORATE                                                                       ,Staff Payment,BA0000298225,35.00,,
BIS,The Insolvency Service,05/08/2016,Travel and Subsistence,CUSTOMER AND COMMUNICATIONS                                                                         ,Staff Payment,BA0000298225,4.79,,
BIS,The Insolvency Service,05/08/2016,Travel and Subsistence,INVESTIGATIONS & ENFORCEMENT                                                                        ,Staff Payment,BA0000298225,65.54,,
BIS,The Insolvency Service,05/08/2016,Travel and Subsistence,INVESTIGATIONS & ENFORCEMENT                                                                        ,Staff Payment,BA0000298225,3.95,,
BIS,The Insolvency Service,05/08/2016,Travel and Subsistence,INVESTIGATIONS & ENFORCEMENT                                                                        ,Staff Payment,BA0000298225,28.04,,
BIS,The Insolvency Service,05/08/2016,Travel and Subsistence,OFFICIAL RECEIVER SERVICES                                                                          ,Staff Payment,BA0000298225,5.00,,
BIS,The Insolvency Service,05/08/2016,Travel and Subsistence,OFFICIAL RECEIVER SERVICES                                                                          ,Staff Payment,BA0000298225,15.36,,
BIS,The Insolvency Service,05/08/2016,Travel and Subsistence,PEOPLE & CAPABILITY                                                                                 ,Staff Payment,BA0000298225,5.00,,
BIS,The Insolvency Service,05/08/2016,Insolvency Case Related Costs,INVESTIGATIONS & ENFORCEMENT                                                                        ,Staff Payment,BA0000298225,7.00,,
BIS,The Insolvency Service,09/08/2016,Travel and Subsistence,INFORMATION TECHNOLOGY                                                                              ,Staff Payment,BA0000298298,70.50,,
BIS,The Insolvency Service,09/08/2016,Travel and Subsistence,INFORMATION TECHNOLOGY                                                                              ,Staff Payment,BA0000298298,199.73,,
BIS,The Insolvency Service,09/08/2016,Travel and Subsistence,BUSINESS SERVICES DIRECTORATE                                                                       ,Staff Payment,BA0000298298,12.10,,
BIS,The Insolvency Service,09/08/2016,Travel and Subsistence,BUSINESS SERVICES DIRECTORATE                                                                       ,Staff Payment,BA0000298298,1.60,,
BIS,The Insolvency Service,09/08/2016,Travel and Subsistence,INFORMATION TECHNOLOGY                                                                              ,Staff Payment,BA0000298298,19.20,,
BIS,The Insolvency Service,09/08/2016,Travel and Subsistence,INFORMATION TECHNOLOGY                                                                              ,Staff Payment,BA0000298298,12.50,,
BIS,The Insolvency Service,09/08/2016,Travel and Subsistence,INFORMATION TECHNOLOGY                                                                              ,Staff Payment,BA0000298298,23.33,,
BIS,The Insolvency Service,09/08/2016,Travel and Subsistence,BUSINESS SERVICES DIRECTORATE                                                                       ,Staff Payment,BA0000298298,2.25,,
BIS,The Insolvency Service,09/08/2016,Travel and Subsistence,BUSINESS SERVICES DIRECTORATE                                                                       ,Staff Payment,BA0000298298,22.04,,
BIS,The Insolvency Service,09/08/2016,Travel and Subsistence,BUSINESS SERVICES DIRECTORATE                                                                       ,Staff Payment,BA0000298298,3.20,,
BIS,The Insolvency Service,09/08/2016,Travel and Subsistence,INFORMATION TECHNOLOGY                                                                              ,Staff Payment,BA0000298298,87.40,,
BIS,The Insolvency Service,09/08/2016,Travel and Subsistence,BUSINESS SERVICES DIRECTORATE                                                                       ,Staff Payment,BA0000298298,4.80,,
BIS,The Insolvency Service,09/08/2016,Travel and Subsistence,INVESTIGATIONS & ENFORCEMENT                                                                        ,Staff Payment,BA0000298298,7.60,,
BIS,The Insolvency Service,09/08/2016,Travel and Subsistence,INVESTIGATIONS & ENFORCEMENT                                                                        ,Staff Payment,BA0000298298,3.00,,
BIS,The Insolvency Service,09/08/2016,Travel and Subsistence,INVESTIGATIONS & ENFORCEMENT                                                                        ,Staff Payment,BA0000298298,3.00,,
BIS,The Insolvency Service,09/08/2016,Travel and Subsistence,INVESTIGATIONS & ENFORCEMENT                                                                        ,Staff Payment,BA0000298298,2.40,,
BIS,The Insolvency Service,09/08/2016,Travel and Subsistence,INVESTIGATIONS & ENFORCEMENT                                                                        ,Staff Payment,BA0000298298,2.40,,
BIS,The Insolvency Service,09/08/2016,Travel and Subsistence,INVESTIGATIONS & ENFORCEMENT                                                                        ,Staff Payment,BA0000298298,2.40,,
BIS,The Insolvency Service,09/08/2016,Travel and Subsistence,INVESTIGATIONS & ENFORCEMENT                                                                        ,Staff Payment,BA0000298298,2.40,,
BIS,The Insolvency Service,09/08/2016,Travel and Subsistence,BUSINESS SERVICES DIRECTORATE                                                                       ,Staff Payment,BA0000298298,9.00,,
BIS,The Insolvency Service,09/08/2016,Travel and Subsistence,INFORMATION TECHNOLOGY                                                                              ,Staff Payment,BA0000298298,12.00,,
BIS,The Insolvency Service,09/08/2016,Travel and Subsistence,INFORMATION TECHNOLOGY                                                                              ,Staff Payment,BA0000298298,12.00,,
BIS,The Insolvency Service,09/08/2016,Travel and Subsistence,INVESTIGATIONS & ENFORCEMENT                                                                        ,Staff Payment,BA0000298298,9.00,,
BIS,The Insolvency Service,09/08/2016,Travel and Subsistence,INVESTIGATIONS & ENFORCEMENT                                                                        ,Staff Payment,BA0000298298,94.00,,
BIS,The Insolvency Service,09/08/2016,Travel and Subsistence,INVESTIGATIONS & ENFORCEMENT                                                                        ,Staff Payment,BA0000298298,9.90,,
BIS,The Insolvency Service,09/08/2016,Travel and Subsistence,INVESTIGATIONS & ENFORCEMENT                                                                        ,Staff Payment,BA0000298298,12.00,,
BIS,The Insolvency Service,09/08/2016,Travel and Subsistence,INVESTIGATIONS & ENFORCEMENT                                                                        ,Staff Payment,BA0000298298,9.90,,
BIS,The Insolvency Service,09/08/2016,Travel and Subsistence,INVESTIGATIONS & ENFORCEMENT                                                                        ,Staff Payment,BA0000298298,12.00,,
BIS,The Insolvency Service,09/08/2016,Travel and Subsistence,INVESTIGATIONS & ENFORCEMENT                                                                        ,Staff Payment,BA0000298298,9.90,,
BIS,The Insolvency Service,09/08/2016,Travel and Subsistence,INVESTIGATIONS & ENFORCEMENT                                                                        ,Staff Payment,BA0000298298,12.00,,
BIS,The Insolvency Service,09/08/2016,Travel and Subsistence,INVESTIGATIONS & ENFORCEMENT                                                                        ,Staff Payment,BA0000298298,9.90,,
BIS,The Insolvency Service,09/08/2016,Travel and Subsistence,INVESTIGATIONS & ENFORCEMENT                                                                        ,Staff Payment,BA0000298298,12.00,,
BIS,The Insolvency Service,09/08/2016,Travel and Subsistence,INVESTIGATIONS & ENFORCEMENT                                                                        ,Staff Payment,BA0000298298,9.90,,
BIS,The Insolvency Service,09/08/2016,Travel and Subsistence,INVESTIGATIONS & ENFORCEMENT                                                                        ,Staff Payment,BA0000298298,12.00,,
BIS,The Insolvency Service,09/08/2016,Travel and Subsistence,INVESTIGATIONS & ENFORCEMENT                                                                        ,Staff Payment,BA0000298298,9.90,,
BIS,The Insolvency Service,09/08/2016,Travel and Subsistence,INVESTIGATIONS & ENFORCEMENT                                                                        ,Staff Payment,BA0000298298,12.00,,
BIS,The Insolvency Service,09/08/2016,Travel and Subsistence,INVESTIGATIONS & ENFORCEMENT                                                                        ,Staff Payment,BA0000298298,25.00,,
BIS,The Insolvency Service,09/08/2016,Travel and Subsistence,INVESTIGATIONS & ENFORCEMENT                                                                        ,Staff Payment,BA0000298298,103.50,,
BIS,The Insolvency Service,09/08/2016,Travel and Subsistence,INVESTIGATIONS & ENFORCEMENT                                                                        ,Staff Payment,BA0000298298,46.00,,
BIS,The Insolvency Service,09/08/2016,Travel and Subsistence,INVESTIGATIONS & ENFORCEMENT                                                                        ,Staff Payment,BA0000298298,192.60,,
BIS,The Insolvency Service,09/08/2016,Travel and Subsistence,OFFICIAL RECEIVER SERVICES                                                                          ,Staff Payment,BA0000298298,11.30,,
BIS,The Insolvency Service,09/08/2016,Travel and Subsistence,OFFICIAL RECEIVER SERVICES                                                                          ,Staff Payment,BA0000298298,13.50,,
BIS,The Insolvency Service,09/08/2016,Travel and Subsistence,INVESTIGATIONS & ENFORCEMENT                                                                        ,Staff Payment,BA0000298298,5.00,,
BIS,The Insolvency Service,09/08/2016,Travel and Subsistence,BUSINESS SERVICES DIRECTORATE                                                                       ,Staff Payment,BA0000298298,41.83,,
BIS,The Insolvency Service,09/08/2016,Travel and Subsistence,BUSINESS SERVICES DIRECTORATE                                                                       ,Staff Payment,BA0000298298,3.79,,
BIS,The Insolvency Service,09/08/2016,Travel and Subsistence,BUSINESS SERVICES DIRECTORATE                                                                       ,Staff Payment,BA0000298298,20.00,,
BIS,The Insolvency Service,09/08/2016,Travel and Subsistence,BUSINESS SERVICES DIRECTORATE                                                                       ,Staff Payment,BA0000298298,20.00,,
BIS,The Insolvency Service,09/08/2016,Travel and Subsistence,INFORMATION TECHNOLOGY                                                                              ,Staff Payment,BA0000298298,6.40,,
BIS,The Insolvency Service,09/08/2016,Travel and Subsistence,INFORMATION TECHNOLOGY                                                                              ,Staff Payment,BA0000298298,6.40,,
BIS,The Insolvency Service,09/08/2016,Travel and Subsistence,INVESTIGATIONS & ENFORCEMENT                                                                        ,Staff Payment,BA0000298298,22.95,,
BIS,The Insolvency Service,09/08/2016,Travel and Subsistence,INVESTIGATIONS & ENFORCEMENT                                                                        ,Staff Payment,BA0000298298,3.65,,
BIS,The Insolvency Service,09/08/2016,Travel and Subsistence,INVESTIGATIONS & ENFORCEMENT                                                                        ,Staff Payment,BA0000298298,4.30,,
BIS,The Insolvency Service,09/08/2016,Travel and Subsistence,INVESTIGATIONS & ENFORCEMENT                                                                        ,Staff Payment,BA0000298298,34.59,,
BIS,The Insolvency Service,09/08/2016,Travel and Subsistence,INVESTIGATIONS & ENFORCEMENT                                                                        ,Staff Payment,BA0000298298,85.00,,
BIS,The Insolvency Service,09/08/2016,Travel and Subsistence,INVESTIGATIONS & ENFORCEMENT                                                                        ,Staff Payment,BA0000298298,4.40,,
BIS,The Insolvency Service,09/08/2016,Travel and Subsistence,INVESTIGATIONS & ENFORCEMENT                                                                        ,Staff Payment,BA0000298298,4.98,,
BIS,The Insolvency Service,09/08/2016,Travel and Subsistence,INVESTIGATIONS & ENFORCEMENT                                                                        ,Staff Payment,BA0000298298,2.75,,
BIS,The Insolvency Service,09/08/2016,Travel and Subsistence,INVESTIGATIONS & ENFORCEMENT                                                                        ,Staff Payment,BA0000298298,3.90,,
BIS,The Insolvency Service,09/08/2016,Travel and Subsistence,INVESTIGATIONS & ENFORCEMENT                                                                        ,Staff Payment,BA0000298298,3.85,,
BIS,The Insolvency Service,09/08/2016,Travel and Subsistence,INVESTIGATIONS & ENFORCEMENT                                                                        ,Staff Payment,BA0000298298,5.00,,
BIS,The Insolvency Service,09/08/2016,Travel and Subsistence,OFFICIAL RECEIVER SERVICES                                                                          ,Staff Payment,BA0000298298,5.00,,
BIS,The Insolvency Service,09/08/2016,Travel and Subsistence,OFFICIAL RECEIVER SERVICES                                                                          ,Staff Payment,BA0000298298,4.50,,
BIS,The Insolvency Service,09/08/2016,Travel and Subsistence,OFFICIAL RECEIVER SERVICES                                                                          ,Staff Payment,BA0000298298,5.00,,
BIS,The Insolvency Service,09/08/2016,Insolvency Case Related Costs,INVESTIGATIONS & ENFORCEMENT                                                                        ,Staff Payment,BA0000298298,7.00,,
BIS,The Insolvency Service,09/08/2016,Insolvency Case Related Costs,INVESTIGATIONS & ENFORCEMENT                                                                        ,Staff Payment,BA0000298298,7.00,,
BIS,The Insolvency Service,09/08/2016,Employee Related Costs,BUSINESS SERVICES DIRECTORATE                                                                       ,Staff Payment,BA0000298298,11.00,,
BIS,The Insolvency Service,10/08/2016,Travel and Subsistence,FINANCE AND COMMERCIAL,Staff Payment,BA0000298342,105.68,,
BIS,The Insolvency Service,10/08/2016,Travel and Subsistence,FINANCE AND COMMERCIAL,Staff Payment,BA0000298342,4.80,,
BIS,The Insolvency Service,10/08/2016,Travel and Subsistence,FINANCE AND COMMERCIAL,Staff Payment,BA0000298342,4.80,,
BIS,The Insolvency Service,10/08/2016,Travel and Subsistence,FINANCE AND COMMERCIAL,Staff Payment,BA0000298342,4.80,,
BIS,The Insolvency Service,10/08/2016,Travel and Subsistence,INVESTIGATIONS & ENFORCEMENT                                                                        ,Staff Payment,BA0000298342,6.10,,
BIS,The Insolvency Service,10/08/2016,Travel and Subsistence,FINANCE AND COMMERCIAL,Staff Payment,BA0000298342,3.00,,
BIS,The Insolvency Service,10/08/2016,Travel and Subsistence,FINANCE AND COMMERCIAL,Staff Payment,BA0000298342,20.00,,
BIS,The Insolvency Service,10/08/2016,Travel and Subsistence,FINANCE AND COMMERCIAL,Staff Payment,BA0000298342,3.55,,
BIS,The Insolvency Service,10/08/2016,Travel and Subsistence,FINANCE AND COMMERCIAL                                                                              ,Staff Payment,BA0000298342,45.00,,
BIS,The Insolvency Service,10/08/2016,Travel and Subsistence,OFFICIAL RECEIVER SERVICES                                                                          ,Staff Payment,BA0000298342,99.38,,
BIS,The Insolvency Service,10/08/2016,Travel and Subsistence,BUSINESS SERVICES DIRECTORATE                                                                       ,Staff Payment,BA0000298342,7.80,,
BIS,The Insolvency Service,10/08/2016,Travel and Subsistence,FINANCE AND COMMERCIAL                                                                              ,Staff Payment,BA0000298342,4.80,,
BIS,The Insolvency Service,10/08/2016,Travel and Subsistence,INVESTIGATIONS & ENFORCEMENT                                                                        ,Staff Payment,BA0000298342,12.30,,
BIS,The Insolvency Service,10/08/2016,Travel and Subsistence,INVESTIGATIONS & ENFORCEMENT                                                                        ,Staff Payment,BA0000298342,6.90,,
BIS,The Insolvency Service,10/08/2016,Travel and Subsistence,INVESTIGATIONS & ENFORCEMENT                                                                        ,Staff Payment,BA0000298342,48.00,,
BIS,The Insolvency Service,10/08/2016,Travel and Subsistence,INVESTIGATIONS & ENFORCEMENT                                                                        ,Staff Payment,BA0000298342,31.50,,
BIS,The Insolvency Service,10/08/2016,Travel and Subsistence,INVESTIGATIONS & ENFORCEMENT                                                                        ,Staff Payment,BA0000298342,12.30,,
BIS,The Insolvency Service,10/08/2016,Travel and Subsistence,BUSINESS SERVICES DIRECTORATE                                                                       ,Staff Payment,BA0000298342,3.00,,
BIS,The Insolvency Service,10/08/2016,Travel and Subsistence,BUSINESS SERVICES DIRECTORATE                                                                       ,Staff Payment,BA0000298342,132.75,,
BIS,The Insolvency Service,10/08/2016,Travel and Subsistence,BUSINESS SERVICES DIRECTORATE                                                                       ,Staff Payment,BA0000298342,193.50,,
BIS,The Insolvency Service,10/08/2016,Travel and Subsistence,BUSINESS SERVICES DIRECTORATE                                                                       ,Staff Payment,BA0000298342,87.60,,
BIS,The Insolvency Service,10/08/2016,Travel and Subsistence,BUSINESS SERVICES DIRECTORATE                                                                       ,Staff Payment,BA0000298342,22.60,,
BIS,The Insolvency Service,10/08/2016,Travel and Subsistence,BUSINESS SERVICES DIRECTORATE                                                                       ,Staff Payment,BA0000298342,188.10,,
BIS,The Insolvency Service,10/08/2016,Travel and Subsistence,INVESTIGATIONS & ENFORCEMENT                                                                        ,Staff Payment,BA0000298342,146.60,,
BIS,The Insolvency Service,10/08/2016,Travel and Subsistence,INVESTIGATIONS & ENFORCEMENT                                                                        ,Staff Payment,BA0000298342,8.50,,
BIS,The Insolvency Service,10/08/2016,Travel and Subsistence,INVESTIGATIONS & ENFORCEMENT                                                                        ,Staff Payment,BA0000298342,18.90,,
BIS,The Insolvency Service,10/08/2016,Travel and Subsistence,OFFICIAL RECEIVER SERVICES                                                                          ,Staff Payment,BA0000298342,1.00,,
BIS,The Insolvency Service,10/08/2016,Travel and Subsistence,OFFICIAL RECEIVER SERVICES                                                                          ,Staff Payment,BA0000298342,10.80,,
BIS,The Insolvency Service,10/08/2016,Travel and Subsistence,OFFICIAL RECEIVER SERVICES                                                                          ,Staff Payment,BA0000298342,45.50,,
BIS,The Insolvency Service,10/08/2016,Travel and Subsistence,OFFICIAL RECEIVER SERVICES                                                                          ,Staff Payment,BA0000298342,5.00,,
BIS,The Insolvency Service,10/08/2016,Travel and Subsistence,OFFICIAL RECEIVER SERVICES                                                                          ,Staff Payment,BA0000298342,37.35,,
BIS,The Insolvency Service,10/08/2016,Travel and Subsistence,OFFICIAL RECEIVER SERVICES                                                                          ,Staff Payment,BA0000298342,5.00,,
BIS,The Insolvency Service,10/08/2016,Travel and Subsistence,OFFICIAL RECEIVER SERVICES                                                                          ,Staff Payment,BA0000298342,37.35,,
BIS,The Insolvency Service,10/08/2016,Travel and Subsistence,OFFICIAL RECEIVER SERVICES                                                                          ,Staff Payment,BA0000298342,61.20,,
BIS,The Insolvency Service,10/08/2016,Travel and Subsistence,OFFICIAL RECEIVER SERVICES                                                                          ,Staff Payment,BA0000298342,22.00,,
BIS,The Insolvency Service,10/08/2016,Travel and Subsistence,PROJECTS                                                                                            ,Staff Payment,BA0000298342,37.80,,
BIS,The Insolvency Service,10/08/2016,Travel and Subsistence,FINANCE AND COMMERCIAL                                                                              ,Staff Payment,BA0000298342,15.50,,
BIS,The Insolvency Service,10/08/2016,Travel and Subsistence,INVESTIGATIONS & ENFORCEMENT                                                                        ,Staff Payment,BA0000298342,19.90,,
BIS,The Insolvency Service,10/08/2016,Travel and Subsistence,BUSINESS SERVICES DIRECTORATE                                                                       ,Staff Payment,BA0000298342,15.38,,
BIS,The Insolvency Service,10/08/2016,Travel and Subsistence,BUSINESS SERVICES DIRECTORATE                                                                       ,Staff Payment,BA0000298342,5.00,,
BIS,The Insolvency Service,10/08/2016,Travel and Subsistence,BUSINESS SERVICES DIRECTORATE                                                                       ,Staff Payment,BA0000298342,28.45,,
BIS,The Insolvency Service,10/08/2016,Travel and Subsistence,BUSINESS SERVICES DIRECTORATE                                                                       ,Staff Payment,BA0000298342,2.75,,
BIS,The Insolvency Service,10/08/2016,Travel and Subsistence,BUSINESS SERVICES DIRECTORATE                                                                       ,Staff Payment,BA0000298342,19.59,,
BIS,The Insolvency Service,10/08/2016,Travel and Subsistence,BUSINESS SERVICES DIRECTORATE                                                                       ,Staff Payment,BA0000298342,35.39,,
BIS,The Insolvency Service,10/08/2016,Travel and Subsistence,FINANCE AND COMMERCIAL                                                                              ,Staff Payment,BA0000298342,5.00,,
BIS,The Insolvency Service,10/08/2016,Travel and Subsistence,INVESTIGATIONS & ENFORCEMENT                                                                        ,Staff Payment,BA0000298342,9.75,,
BIS,The Insolvency Service,10/08/2016,Travel and Subsistence,INVESTIGATIONS & ENFORCEMENT                                                                        ,Staff Payment,BA0000298342,4.69,,
BIS,The Insolvency Service,10/08/2016,Travel and Subsistence,OFFICIAL RECEIVER SERVICES                                                                          ,Staff Payment,BA0000298342,7.98,,
BIS,The Insolvency Service,10/08/2016,Employee Related Costs,PEOPLE & CAPABILITY                                                                                 ,Staff Payment,BA0000298342,148.00,,
BIS,The Insolvency Service,11/08/2016,Travel and Subsistence,OFFICIAL RECEIVER SERVICES                                                                          ,Staff Payment,BA0000298374,4.00,,
BIS,The Insolvency Service,11/08/2016,Travel and Subsistence,OFFICIAL RECEIVER SERVICES                                                                          ,Staff Payment,BA0000298374,1.00,,
BIS,The Insolvency Service,11/08/2016,Travel and Subsistence,INVESTIGATIONS & ENFORCEMENT                                                                        ,Staff Payment,BA0000298374,"1,085.40",,
BIS,The Insolvency Service,11/08/2016,Travel and Subsistence,OFFICIAL RECEIVER SERVICES                                                                          ,Staff Payment,BA0000298374,5.30,,
BIS,The Insolvency Service,11/08/2016,Travel and Subsistence,OFFICIAL RECEIVER SERVICES                                                                          ,Staff Payment,BA0000298374,71.10,,
BIS,The Insolvency Service,11/08/2016,Travel and Subsistence,BUSINESS SERVICES DIRECTORATE                                                                       ,Staff Payment,BA0000298374,20.00,,
BIS,The Insolvency Service,11/08/2016,Travel and Subsistence,OFFICIAL RECEIVER SERVICES                                                                          ,Staff Payment,BA0000298374,26.79,,
BIS,The Insolvency Service,11/08/2016,Insolvency Case Related Costs,INVESTIGATIONS & ENFORCEMENT                                                                        ,Staff Payment,BA0000298374,35.00,,
BIS,The Insolvency Service,11/08/2016,Insolvency Case Related Costs,INVESTIGATIONS & ENFORCEMENT                                                                        ,Staff Payment,BA0000298374,7.00,,
BIS,The Insolvency Service,12/08/2016,Travel and Subsistence,INVESTIGATIONS & ENFORCEMENT                                                                        ,Staff Payment,BA0000298416,11.10,,
BIS,The Insolvency Service,12/08/2016,Travel and Subsistence,OFFICIAL RECEIVER SERVICES                                                                          ,Staff Payment,BA0000298416,11.00,,
BIS,The Insolvency Service,12/08/2016,Travel and Subsistence,ESTATES,Staff Payment,BA0000298416,18.90,,
BIS,The Insolvency Service,12/08/2016,Travel and Subsistence,INVESTIGATIONS & ENFORCEMENT                                                                        ,Staff Payment,BA0000298416,1.50,,
BIS,The Insolvency Service,12/08/2016,Travel and Subsistence,INVESTIGATIONS & ENFORCEMENT                                                                        ,Staff Payment,BA0000298416,60.75,,
BIS,The Insolvency Service,12/08/2016,Travel and Subsistence,INVESTIGATIONS & ENFORCEMENT                                                                        ,Staff Payment,BA0000298416,1.40,,
BIS,The Insolvency Service,12/08/2016,Travel and Subsistence,INVESTIGATIONS & ENFORCEMENT                                                                        ,Staff Payment,BA0000298416,11.70,,
BIS,The Insolvency Service,12/08/2016,Travel and Subsistence,INVESTIGATIONS & ENFORCEMENT                                                                        ,Staff Payment,BA0000298416,9.90,,
BIS,The Insolvency Service,12/08/2016,Travel and Subsistence,INVESTIGATIONS & ENFORCEMENT                                                                        ,Staff Payment,BA0000298416,12.00,,
BIS,The Insolvency Service,12/08/2016,Travel and Subsistence,INVESTIGATIONS & ENFORCEMENT                                                                        ,Staff Payment,BA0000298416,9.90,,
BIS,The Insolvency Service,12/08/2016,Travel and Subsistence,INVESTIGATIONS & ENFORCEMENT                                                                        ,Staff Payment,BA0000298416,12.00,,
BIS,The Insolvency Service,12/08/2016,Travel and Subsistence,INVESTIGATIONS & ENFORCEMENT                                                                        ,Staff Payment,BA0000298416,9.90,,
BIS,The Insolvency Service,12/08/2016,Travel and Subsistence,INVESTIGATIONS & ENFORCEMENT                                                                        ,Staff Payment,BA0000298416,12.00,,
BIS,The Insolvency Service,12/08/2016,Travel and Subsistence,INVESTIGATIONS & ENFORCEMENT                                                                        ,Staff Payment,BA0000298416,9.90,,
BIS,The Insolvency Service,12/08/2016,Travel and Subsistence,INVESTIGATIONS & ENFORCEMENT                                                                        ,Staff Payment,BA0000298416,12.00,,
BIS,The Insolvency Service,12/08/2016,Travel and Subsistence,INVESTIGATIONS & ENFORCEMENT                                                                        ,Staff Payment,BA0000298416,9.90,,
BIS,The Insolvency Service,12/08/2016,Travel and Subsistence,INVESTIGATIONS & ENFORCEMENT                                                                        ,Staff Payment,BA0000298416,11.50,,
BIS,The Insolvency Service,12/08/2016,Travel and Subsistence,OFFICIAL RECEIVER SERVICES                                                                          ,Staff Payment,BA0000298416,1.00,,
BIS,The Insolvency Service,12/08/2016,Travel and Subsistence,OFFICIAL RECEIVER SERVICES                                                                          ,Staff Payment,BA0000298416,20.70,,
BIS,The Insolvency Service,12/08/2016,Travel and Subsistence,OFFICIAL RECEIVER SERVICES                                                                          ,Staff Payment,BA0000298416,2.50,,
BIS,The Insolvency Service,12/08/2016,Travel and Subsistence,OFFICIAL RECEIVER SERVICES                                                                          ,Staff Payment,BA0000298416,34.00,,
BIS,The Insolvency Service,12/08/2016,Travel and Subsistence,OFFICIAL RECEIVER SERVICES                                                                          ,Staff Payment,BA0000298416,1.00,,
BIS,The Insolvency Service,12/08/2016,Travel and Subsistence,OFFICIAL RECEIVER SERVICES                                                                          ,Staff Payment,BA0000298416,18.00,,
BIS,The Insolvency Service,12/08/2016,Travel and Subsistence,OFFICIAL RECEIVER SERVICES                                                                          ,Staff Payment,BA0000298416,6.00,,
BIS,The Insolvency Service,12/08/2016,Travel and Subsistence,OFFICIAL RECEIVER SERVICES                                                                          ,Staff Payment,BA0000298416,3.00,,
BIS,The Insolvency Service,12/08/2016,Travel and Subsistence,OFFICIAL RECEIVER SERVICES                                                                          ,Staff Payment,BA0000298416,1.00,,
BIS,The Insolvency Service,12/08/2016,Travel and Subsistence,OFFICIAL RECEIVER SERVICES                                                                          ,Staff Payment,BA0000298416,88.65,,
BIS,The Insolvency Service,12/08/2016,Travel and Subsistence,OFFICIAL RECEIVER SERVICES                                                                          ,Staff Payment,BA0000298416,19.80,,
BIS,The Insolvency Service,12/08/2016,Travel and Subsistence,OFFICIAL RECEIVER SERVICES                                                                          ,Staff Payment,BA0000298416,7.20,,
BIS,The Insolvency Service,12/08/2016,Travel and Subsistence,INVESTIGATIONS & ENFORCEMENT                                                                        ,Staff Payment,BA0000298416,3.00,,
BIS,The Insolvency Service,12/08/2016,Travel and Subsistence,INVESTIGATIONS & ENFORCEMENT                                                                        ,Staff Payment,BA0000298416,15.33,,
BIS,The Insolvency Service,12/08/2016,Travel and Subsistence,INVESTIGATIONS & ENFORCEMENT                                                                        ,Staff Payment,BA0000298416,4.45,,
BIS,The Insolvency Service,12/08/2016,Travel and Subsistence,INVESTIGATIONS & ENFORCEMENT                                                                        ,Staff Payment,BA0000298416,5.00,,
BIS,The Insolvency Service,12/08/2016,Travel and Subsistence,INVESTIGATIONS & ENFORCEMENT                                                                        ,Staff Payment,BA0000298416,4.50,,
BIS,The Insolvency Service,12/08/2016,Travel and Subsistence,OFFICIAL RECEIVER SERVICES                                                                          ,Staff Payment,BA0000298416,4.55,,
BIS,The Insolvency Service,12/08/2016,Insolvency Case Related Costs,INVESTIGATIONS & ENFORCEMENT                                                                        ,Staff Payment,BA0000298416,7.00,,
BIS,The Insolvency Service,12/08/2016,Employee Related Costs,PEOPLE & CAPABILITY                                                                                 ,Staff Payment,BA0000298416,175.00,,
BIS,The Insolvency Service,15/08/2016,Travel and Subsistence,FINANCE AND COMMERCIAL,Staff Payment,BA0000298449,23.00,,
BIS,The Insolvency Service,15/08/2016,Travel and Subsistence,FINANCE AND COMMERCIAL,Staff Payment,BA0000298449,12.00,,
BIS,The Insolvency Service,15/08/2016,Employee Related Costs,PEOPLE & CAPABILITY                                                                                 ,Staff Payment,BA0000298449,174.00,,
BIS,The Insolvency Service,15/08/2016,Travel and Subsistence,INFORMATION TECHNOLOGY                                                                              ,Staff Payment,BA0000298449,215.80,,
BIS,The Insolvency Service,15/08/2016,Travel and Subsistence,INVESTIGATIONS & ENFORCEMENT                                                                        ,Staff Payment,BA0000298449,103.55,,
BIS,The Insolvency Service,15/08/2016,Travel and Subsistence,PEOPLE & CAPABILITY                                                                                 ,Staff Payment,BA0000298449,629.80,,
BIS,The Insolvency Service,15/08/2016,Travel and Subsistence,EXTERNAL AFFAIRS                                                                                    ,Staff Payment,BA0000298449,150.35,,
BIS,The Insolvency Service,15/08/2016,Travel and Subsistence,BUSINESS SERVICES DIRECTORATE                                                                       ,Staff Payment,BA0000298449,25.10,,
BIS,The Insolvency Service,15/08/2016,Travel and Subsistence,BUSINESS SERVICES DIRECTORATE                                                                       ,Staff Payment,BA0000298449,21.50,,
BIS,The Insolvency Service,15/08/2016,Travel and Subsistence,INVESTIGATIONS & ENFORCEMENT                                                                        ,Staff Payment,BA0000298449,10.70,,
BIS,The Insolvency Service,15/08/2016,Travel and Subsistence,INVESTIGATIONS & ENFORCEMENT                                                                        ,Staff Payment,BA0000298449,3.00,,
BIS,The Insolvency Service,15/08/2016,Travel and Subsistence,PEOPLE & CAPABILITY                                                                                 ,Staff Payment,BA0000298449,10.00,,
BIS,The Insolvency Service,15/08/2016,Travel and Subsistence,BUSINESS SERVICES DIRECTORATE                                                                       ,Staff Payment,BA0000298449,5.40,,
BIS,The Insolvency Service,15/08/2016,Travel and Subsistence,BUSINESS SERVICES DIRECTORATE                                                                       ,Staff Payment,BA0000298449,2.50,,
BIS,The Insolvency Service,15/08/2016,Travel and Subsistence,BUSINESS SERVICES DIRECTORATE                                                                       ,Staff Payment,BA0000298449,49.50,,
BIS,The Insolvency Service,15/08/2016,Travel and Subsistence,BUSINESS SERVICES DIRECTORATE                                                                       ,Staff Payment,BA0000298449,2.30,,
BIS,The Insolvency Service,15/08/2016,Travel and Subsistence,BUSINESS SERVICES DIRECTORATE                                                                       ,Staff Payment,BA0000298449,24.40,,
BIS,The Insolvency Service,15/08/2016,Travel and Subsistence,BUSINESS SERVICES DIRECTORATE                                                                       ,Staff Payment,BA0000298449,65.70,,
BIS,The Insolvency Service,15/08/2016,Travel and Subsistence,BUSINESS SERVICES DIRECTORATE                                                                       ,Staff Payment,BA0000298449,165.60,,
BIS,The Insolvency Service,15/08/2016,Travel and Subsistence,BUSINESS SERVICES DIRECTORATE                                                                       ,Staff Payment,BA0000298449,3.66,,
BIS,The Insolvency Service,15/08/2016,Travel and Subsistence,BUSINESS SERVICES DIRECTORATE                                                                       ,Staff Payment,BA0000298449,97.00,,
BIS,The Insolvency Service,15/08/2016,Travel and Subsistence,INVESTIGATIONS & ENFORCEMENT                                                                        ,Staff Payment,BA0000298449,5.00,,
BIS,The Insolvency Service,15/08/2016,Travel and Subsistence,INVESTIGATIONS & ENFORCEMENT                                                                        ,Staff Payment,BA0000298449,18.90,,
BIS,The Insolvency Service,15/08/2016,Travel and Subsistence,INVESTIGATIONS & ENFORCEMENT                                                                        ,Staff Payment,BA0000298449,18.00,,
BIS,The Insolvency Service,15/08/2016,Travel and Subsistence,INVESTIGATIONS & ENFORCEMENT                                                                        ,Staff Payment,BA0000298449,52.00,,
BIS,The Insolvency Service,15/08/2016,Travel and Subsistence,INVESTIGATIONS & ENFORCEMENT                                                                        ,Staff Payment,BA0000298449,52.25,,
BIS,The Insolvency Service,15/08/2016,Travel and Subsistence,INVESTIGATIONS & ENFORCEMENT                                                                        ,Staff Payment,BA0000298449,1.00,,
BIS,The Insolvency Service,15/08/2016,Travel and Subsistence,INVESTIGATIONS & ENFORCEMENT                                                                        ,Staff Payment,BA0000298449,19.50,,
BIS,The Insolvency Service,15/08/2016,Travel and Subsistence,INVESTIGATIONS & ENFORCEMENT                                                                        ,Staff Payment,BA0000298449,11.00,,
BIS,The Insolvency Service,15/08/2016,Travel and Subsistence,INVESTIGATIONS & ENFORCEMENT                                                                        ,Staff Payment,BA0000298449,9.00,,
BIS,The Insolvency Service,15/08/2016,Travel and Subsistence,OFFICIAL RECEIVER SERVICES                                                                          ,Staff Payment,BA0000298449,2.00,,
BIS,The Insolvency Service,15/08/2016,Travel and Subsistence,OFFICIAL RECEIVER SERVICES                                                                          ,Staff Payment,BA0000298449,10.01,,
BIS,The Insolvency Service,15/08/2016,Travel and Subsistence,OFFICIAL RECEIVER SERVICES                                                                          ,Staff Payment,BA0000298449,3.00,,
BIS,The Insolvency Service,15/08/2016,Travel and Subsistence,OFFICIAL RECEIVER SERVICES                                                                          ,Staff Payment,BA0000298449,41.85,,
BIS,The Insolvency Service,15/08/2016,Travel and Subsistence,PEOPLE & CAPABILITY                                                                                 ,Staff Payment,BA0000298449,46.80,,
BIS,The Insolvency Service,15/08/2016,Travel and Subsistence,PEOPLE & CAPABILITY                                                                                 ,Staff Payment,BA0000298449,25.20,,
BIS,The Insolvency Service,15/08/2016,Travel and Subsistence,PEOPLE & CAPABILITY                                                                                 ,Staff Payment,BA0000298449,102.00,,
BIS,The Insolvency Service,15/08/2016,Travel and Subsistence,BUSINESS SERVICES DIRECTORATE                                                                       ,Staff Payment,BA0000298449,19.00,,
BIS,The Insolvency Service,15/08/2016,Travel and Subsistence,BUSINESS SERVICES DIRECTORATE                                                                       ,Staff Payment,BA0000298449,15.00,,
BIS,The Insolvency Service,15/08/2016,Travel and Subsistence,INFORMATION TECHNOLOGY                                                                              ,Staff Payment,BA0000298449,18.00,,
BIS,The Insolvency Service,15/08/2016,Travel and Subsistence,PEOPLE & CAPABILITY                                                                                 ,Staff Payment,BA0000298449,19.00,,
BIS,The Insolvency Service,15/08/2016,Travel and Subsistence,BUSINESS SERVICES DIRECTORATE                                                                       ,Staff Payment,BA0000298449,26.79,,
BIS,The Insolvency Service,15/08/2016,Travel and Subsistence,BUSINESS SERVICES DIRECTORATE                                                                       ,Staff Payment,BA0000298449,19.95,,
BIS,The Insolvency Service,15/08/2016,Travel and Subsistence,BUSINESS SERVICES DIRECTORATE                                                                       ,Staff Payment,BA0000298449,5.00,,
BIS,The Insolvency Service,15/08/2016,Travel and Subsistence,BUSINESS SERVICES DIRECTORATE                                                                       ,Staff Payment,BA0000298449,48.79,,
BIS,The Insolvency Service,15/08/2016,Travel and Subsistence,BUSINESS SERVICES DIRECTORATE                                                                       ,Staff Payment,BA0000298449,10.00,,
BIS,The Insolvency Service,15/08/2016,Travel and Subsistence,BUSINESS SERVICES DIRECTORATE                                                                       ,Staff Payment,BA0000298449,22.60,,
BIS,The Insolvency Service,15/08/2016,Travel and Subsistence,BUSINESS SERVICES DIRECTORATE                                                                       ,Staff Payment,BA0000298449,29.10,,
BIS,The Insolvency Service,15/08/2016,Travel and Subsistence,FINANCE AND COMMERCIAL,Staff Payment,BA0000298449,4.97,,
BIS,The Insolvency Service,15/08/2016,Travel and Subsistence,INFORMATION TECHNOLOGY                                                                              ,Staff Payment,BA0000298449,36.95,,
BIS,The Insolvency Service,15/08/2016,Travel and Subsistence,INVESTIGATIONS & ENFORCEMENT                                                                        ,Staff Payment,BA0000298449,9.90,,
BIS,The Insolvency Service,15/08/2016,Travel and Subsistence,INVESTIGATIONS & ENFORCEMENT                                                                        ,Staff Payment,BA0000298449,107.62,,
BIS,The Insolvency Service,15/08/2016,Travel and Subsistence,INVESTIGATIONS & ENFORCEMENT                                                                        ,Staff Payment,BA0000298449,36.60,,
BIS,The Insolvency Service,15/08/2016,Travel and Subsistence,INVESTIGATIONS & ENFORCEMENT                                                                        ,Staff Payment,BA0000298449,4.65,,
BIS,The Insolvency Service,15/08/2016,Travel and Subsistence,INVESTIGATIONS & ENFORCEMENT                                                                        ,Staff Payment,BA0000298449,27.80,,
BIS,The Insolvency Service,15/08/2016,Travel and Subsistence,INVESTIGATIONS & ENFORCEMENT                                                                        ,Staff Payment,BA0000298449,5.00,,
BIS,The Insolvency Service,15/08/2016,Travel and Subsistence,INVESTIGATIONS & ENFORCEMENT                                                                        ,Staff Payment,BA0000298449,5.00,,
BIS,The Insolvency Service,15/08/2016,Travel and Subsistence,OFFICIAL RECEIVER SERVICES                                                                          ,Staff Payment,BA0000298449,4.99,,
BIS,The Insolvency Service,15/08/2016,Travel and Subsistence,OFFICIAL RECEIVER SERVICES                                                                          ,Staff Payment,BA0000298449,5.00,,
BIS,The Insolvency Service,15/08/2016,Travel and Subsistence,PEOPLE & CAPABILITY                                                                                 ,Staff Payment,BA0000298449,360.57,,
BIS,The Insolvency Service,17/08/2016,Travel and Subsistence,FINANCE AND COMMERCIAL,Staff Payment,BA0000298534,89.80,,
BIS,The Insolvency Service,17/08/2016,Travel and Subsistence,BUSINESS SERVICES DIRECTORATE                                                                       ,Staff Payment,BA0000298534,27.99,,
BIS,The Insolvency Service,17/08/2016,Travel and Subsistence,FINANCE AND COMMERCIAL,Staff Payment,BA0000298534,1.50,,
BIS,The Insolvency Service,17/08/2016,Travel and Subsistence,INVESTIGATIONS & ENFORCEMENT                                                                        ,Staff Payment,BA0000298534,4.80,,
BIS,The Insolvency Service,17/08/2016,Travel and Subsistence,INVESTIGATIONS & ENFORCEMENT                                                                        ,Staff Payment,BA0000298534,4.80,,
BIS,The Insolvency Service,17/08/2016,Travel and Subsistence,INVESTIGATIONS & ENFORCEMENT                                                                        ,Staff Payment,BA0000298534,3.80,,
BIS,The Insolvency Service,17/08/2016,Travel and Subsistence,OFFICIAL RECEIVER SERVICES                                                                          ,Staff Payment,BA0000298534,18.30,,
BIS,The Insolvency Service,17/08/2016,Travel and Subsistence,INVESTIGATIONS & ENFORCEMENT                                                                        ,Staff Payment,BA0000298534,12.00,,
BIS,The Insolvency Service,17/08/2016,Travel and Subsistence,INVESTIGATIONS & ENFORCEMENT                                                                        ,Staff Payment,BA0000298534,59.40,,
BIS,The Insolvency Service,17/08/2016,Travel and Subsistence,INVESTIGATIONS & ENFORCEMENT                                                                        ,Staff Payment,BA0000298534,12.00,,
BIS,The Insolvency Service,17/08/2016,Travel and Subsistence,OFFICIAL RECEIVER SERVICES                                                                          ,Staff Payment,BA0000298534,10.35,,
BIS,The Insolvency Service,17/08/2016,Travel and Subsistence,OFFICIAL RECEIVER SERVICES                                                                          ,Staff Payment,BA0000298534,18.00,,
BIS,The Insolvency Service,17/08/2016,Travel and Subsistence,OFFICIAL RECEIVER SERVICES                                                                          ,Staff Payment,BA0000298534,132.15,,
BIS,The Insolvency Service,17/08/2016,Travel and Subsistence,OFFICIAL RECEIVER SERVICES                                                                          ,Staff Payment,BA0000298534,5.00,,
BIS,The Insolvency Service,17/08/2016,Travel and Subsistence,OFFICIAL RECEIVER SERVICES                                                                          ,Staff Payment,BA0000298534,11.70,,
BIS,The Insolvency Service,17/08/2016,Travel and Subsistence,OFFICIAL RECEIVER SERVICES                                                                          ,Staff Payment,BA0000298534,5.00,,
BIS,The Insolvency Service,17/08/2016,Travel and Subsistence,OFFICIAL RECEIVER SERVICES                                                                          ,Staff Payment,BA0000298534,19.80,,
BIS,The Insolvency Service,17/08/2016,Travel and Subsistence,OFFICIAL RECEIVER SERVICES                                                                          ,Staff Payment,BA0000298534,5.40,,
BIS,The Insolvency Service,17/08/2016,Travel and Subsistence,OFFICIAL RECEIVER SERVICES                                                                          ,Staff Payment,BA0000298534,50.00,,
BIS,The Insolvency Service,17/08/2016,Travel and Subsistence,BUSINESS SERVICES DIRECTORATE                                                                       ,Staff Payment,BA0000298534,7.50,,
BIS,The Insolvency Service,17/08/2016,Travel and Subsistence,OFFICIAL RECEIVER SERVICES                                                                          ,Staff Payment,BA0000298534,20.00,,
BIS,The Insolvency Service,17/08/2016,Travel and Subsistence,BUSINESS SERVICES DIRECTORATE                                                                       ,Staff Payment,BA0000298534,25.52,,
BIS,The Insolvency Service,17/08/2016,Travel and Subsistence,INVESTIGATIONS & ENFORCEMENT                                                                        ,Staff Payment,BA0000298534,9.79,,
BIS,The Insolvency Service,17/08/2016,Travel and Subsistence,INVESTIGATIONS & ENFORCEMENT                                                                        ,Staff Payment,BA0000298534,8.89,,
BIS,The Insolvency Service,17/08/2016,Travel and Subsistence,OFFICIAL RECEIVER SERVICES                                                                          ,Staff Payment,BA0000298534,9.54,,
BIS,The Insolvency Service,17/08/2016,Travel and Subsistence,OFFICIAL RECEIVER SERVICES                                                                          ,Staff Payment,BA0000298534,8.63,,
BIS,The Insolvency Service,17/08/2016,Travel and Subsistence,OFFICIAL RECEIVER SERVICES                                                                          ,Staff Payment,BA0000298534,5.00,,
BIS,The Insolvency Service,17/08/2016,Travel and Subsistence,OFFICIAL RECEIVER SERVICES                                                                          ,Staff Payment,BA0000298534,2.05,,
BIS,The Insolvency Service,18/08/2016,Travel and Subsistence,PEOPLE & CAPABILITY                                                                                 ,Staff Payment,BA0000298629,43.30,,
BIS,The Insolvency Service,18/08/2016,Travel and Subsistence,PEOPLE & CAPABILITY                                                                                 ,Staff Payment,BA0000298629,19.00,,
BIS,The Insolvency Service,18/08/2016,Travel and Subsistence,PEOPLE & CAPABILITY                                                                                 ,Staff Payment,BA0000298629,17.55,,
BIS,The Insolvency Service,18/08/2016,Training Costs,FINANCE AND COMMERCIAL,Staff Payment,BA0000298629,98.00,,
BIS,The Insolvency Service,18/08/2016,Travel and Subsistence,BUSINESS SERVICES DIRECTORATE                                                                       ,Staff Payment,BA0000298629,12.10,,
BIS,The Insolvency Service,18/08/2016,Travel and Subsistence,BUSINESS SERVICES DIRECTORATE                                                                       ,Staff Payment,BA0000298629,3.20,,
BIS,The Insolvency Service,18/08/2016,Travel and Subsistence,INVESTIGATIONS & ENFORCEMENT                                                                        ,Staff Payment,BA0000298629,4.00,,
BIS,The Insolvency Service,18/08/2016,Travel and Subsistence,BUSINESS SERVICES DIRECTORATE                                                                       ,Staff Payment,BA0000298629,15.00,,
BIS,The Insolvency Service,18/08/2016,Travel and Subsistence,BUSINESS SERVICES DIRECTORATE                                                                       ,Staff Payment,BA0000298629,117.25,,
BIS,The Insolvency Service,18/08/2016,Travel and Subsistence,BUSINESS SERVICES DIRECTORATE                                                                       ,Staff Payment,BA0000298629,18.34,,
BIS,The Insolvency Service,18/08/2016,Travel and Subsistence,BUSINESS SERVICES DIRECTORATE                                                                       ,Staff Payment,BA0000298629,147.50,,
BIS,The Insolvency Service,18/08/2016,Travel and Subsistence,INVESTIGATIONS & ENFORCEMENT                                                                        ,Staff Payment,BA0000298629,4.95,,
BIS,The Insolvency Service,18/08/2016,Travel and Subsistence,OFFICIAL RECEIVER SERVICES                                                                          ,Staff Payment,BA0000298629,67.00,,
BIS,The Insolvency Service,18/08/2016,Travel and Subsistence,OFFICIAL RECEIVER SERVICES                                                                          ,Staff Payment,BA0000298629,24.00,,
BIS,The Insolvency Service,18/08/2016,Travel and Subsistence,OFFICIAL RECEIVER SERVICES                                                                          ,Staff Payment,BA0000298629,3.80,,
BIS,The Insolvency Service,18/08/2016,Travel and Subsistence,OFFICIAL RECEIVER SERVICES                                                                          ,Staff Payment,BA0000298629,14.40,,
BIS,The Insolvency Service,18/08/2016,Travel and Subsistence,PEOPLE & CAPABILITY                                                                                 ,Staff Payment,BA0000298629,10.35,,
BIS,The Insolvency Service,18/08/2016,Travel and Subsistence,PEOPLE & CAPABILITY                                                                                 ,Staff Payment,BA0000298629,25.65,,
BIS,The Insolvency Service,18/08/2016,Travel and Subsistence,BUSINESS SERVICES DIRECTORATE                                                                       ,Staff Payment,BA0000298629,5.00,,
BIS,The Insolvency Service,18/08/2016,Travel and Subsistence,BUSINESS SERVICES DIRECTORATE                                                                       ,Staff Payment,BA0000298629,3.93,,
BIS,The Insolvency Service,18/08/2016,Travel and Subsistence,BUSINESS SERVICES DIRECTORATE                                                                       ,Staff Payment,BA0000298629,25.99,,
BIS,The Insolvency Service,18/08/2016,Travel and Subsistence,BUSINESS SERVICES DIRECTORATE                                                                       ,Staff Payment,BA0000298629,25.32,,
BIS,The Insolvency Service,18/08/2016,Travel and Subsistence,BUSINESS SERVICES DIRECTORATE                                                                       ,Staff Payment,BA0000298629,24.40,,
BIS,The Insolvency Service,18/08/2016,Travel and Subsistence,INVESTIGATIONS & ENFORCEMENT                                                                        ,Staff Payment,BA0000298629,2.65,,
BIS,The Insolvency Service,18/08/2016,Travel and Subsistence,OFFICIAL RECEIVER SERVICES                                                                          ,Staff Payment,BA0000298629,3.79,,
BIS,The Insolvency Service,18/08/2016,Travel and Subsistence,OFFICIAL RECEIVER SERVICES                                                                          ,Staff Payment,BA0000298629,4.55,,
BIS,The Insolvency Service,18/08/2016,Travel and Subsistence,PEOPLE & CAPABILITY                                                                                 ,Staff Payment,BA0000298629,4.95,,
BIS,The Insolvency Service,18/08/2016,Travel and Subsistence,PEOPLE & CAPABILITY                                                                                 ,Staff Payment,BA0000298629,5.00,,
BIS,The Insolvency Service,23/08/2016,Travel and Subsistence,PEOPLE & CAPABILITY                                                                                 ,Staff Payment,BA0000298743,54.80,,
BIS,The Insolvency Service,23/08/2016,Travel and Subsistence,P&C - Talent                                                                                        ,Staff Payment,BA0000298743,70.65,,
BIS,The Insolvency Service,23/08/2016,Travel and Subsistence,PEOPLE & CAPABILITY                                                                                 ,Staff Payment,BA0000298743,20.00,,
BIS,The Insolvency Service,23/08/2016,Travel and Subsistence,BUSINESS SERVICES DIRECTORATE                                                                       ,Staff Payment,BA0000298743,44.35,,
BIS,The Insolvency Service,23/08/2016,Travel and Subsistence,FINANCE AND COMMERCIAL                                                                              ,Staff Payment,BA0000298743,4.80,,
BIS,The Insolvency Service,23/08/2016,Travel and Subsistence,OFFICIAL RECEIVER SERVICES                                                                          ,Staff Payment,BA0000298743,9.80,,
BIS,The Insolvency Service,23/08/2016,Travel and Subsistence,BUSINESS SERVICES DIRECTORATE                                                                       ,Staff Payment,BA0000298743,261.45,,
BIS,The Insolvency Service,23/08/2016,Travel and Subsistence,OFFICIAL RECEIVER SERVICES                                                                          ,Staff Payment,BA0000298743,5.50,,
BIS,The Insolvency Service,23/08/2016,Travel and Subsistence,OFFICIAL RECEIVER SERVICES                                                                          ,Staff Payment,BA0000298743,9.00,,
BIS,The Insolvency Service,23/08/2016,Travel and Subsistence,OFFICIAL RECEIVER SERVICES                                                                          ,Staff Payment,BA0000298743,9.00,,
BIS,The Insolvency Service,23/08/2016,Travel and Subsistence,OFFICIAL RECEIVER SERVICES                                                                          ,Staff Payment,BA0000298743,9.00,,
BIS,The Insolvency Service,23/08/2016,Travel and Subsistence,BUSINESS SERVICES DIRECTORATE                                                                       ,Staff Payment,BA0000298743,25.20,,
BIS,The Insolvency Service,23/08/2016,Travel and Subsistence,OFFICIAL RECEIVER SERVICES                                                                          ,Staff Payment,BA0000298743,7.00,,
BIS,The Insolvency Service,23/08/2016,Travel and Subsistence,BUSINESS SERVICES DIRECTORATE                                                                       ,Staff Payment,BA0000298743,33.40,,
BIS,The Insolvency Service,23/08/2016,Travel and Subsistence,BUSINESS SERVICES DIRECTORATE                                                                       ,Staff Payment,BA0000298743,30.00,,
BIS,The Insolvency Service,23/08/2016,Travel and Subsistence,FINANCE AND COMMERCIAL                                                                              ,Staff Payment,BA0000298743,31.74,,
BIS,The Insolvency Service,23/08/2016,Travel and Subsistence,INVESTIGATIONS & ENFORCEMENT                                                                        ,Staff Payment,BA0000298743,3.32,,
BIS,The Insolvency Service,23/08/2016,Travel and Subsistence,OFFICIAL RECEIVER SERVICES                                                                          ,Staff Payment,BA0000298743,5.00,,
BIS,The Insolvency Service,23/08/2016,Travel and Subsistence,OFFICIAL RECEIVER SERVICES                                                                          ,Staff Payment,BA0000298743,7.89,,
BIS,The Insolvency Service,23/08/2016,Travel and Subsistence,OFFICIAL RECEIVER SERVICES                                                                          ,Staff Payment,BA0000298743,8.82,,
BIS,The Insolvency Service,23/08/2016,Travel and Subsistence,OFFICIAL RECEIVER SERVICES                                                                          ,Staff Payment,BA0000298743,4.90,,
BIS,The Insolvency Service,23/08/2016,Travel and Subsistence,OFFICIAL RECEIVER SERVICES                                                                          ,Staff Payment,BA0000298743,7.45,,
BIS,The Insolvency Service,23/08/2016,Travel and Subsistence,OFFICIAL RECEIVER SERVICES                                                                          ,Staff Payment,BA0000298743,5.00,,
BIS,The Insolvency Service,23/08/2016,Insolvency Case Related Costs,INVESTIGATIONS & ENFORCEMENT                                                                        ,Staff Payment,BA0000298743,7.00,,
BIS,The Insolvency Service,23/08/2016,Insolvency Case Related Costs,INVESTIGATIONS & ENFORCEMENT                                                                        ,Staff Payment,BA0000298743,14.00,,
BIS,The Insolvency Service,23/08/2016,Insolvency Case Related Costs,INVESTIGATIONS & ENFORCEMENT                                                                        ,Staff Payment,BA0000298743,7.00,,
BIS,The Insolvency Service,25/08/2016,Travel and Subsistence,INVESTIGATIONS & ENFORCEMENT                                                                        ,Staff Payment,BA0000298860,20.90,,
BIS,The Insolvency Service,25/08/2016,Travel and Subsistence,INVESTIGATIONS & ENFORCEMENT                                                                        ,Staff Payment,BA0000298860,9.80,,
BIS,The Insolvency Service,25/08/2016,Travel and Subsistence,INVESTIGATIONS & ENFORCEMENT                                                                        ,Staff Payment,BA0000298860,4.80,,
BIS,The Insolvency Service,25/08/2016,Travel and Subsistence,INVESTIGATIONS & ENFORCEMENT                                                                        ,Staff Payment,BA0000298860,14.40,,
BIS,The Insolvency Service,25/08/2016,Travel and Subsistence,INVESTIGATIONS & ENFORCEMENT                                                                        ,Staff Payment,BA0000298860,4.80,,
BIS,The Insolvency Service,25/08/2016,Travel and Subsistence,OFFICIAL RECEIVER SERVICES                                                                          ,Staff Payment,BA0000298860,2.50,,
BIS,The Insolvency Service,25/08/2016,Travel and Subsistence,P&C - People Relations                                                                              ,Staff Payment,BA0000298860,4.80,,
BIS,The Insolvency Service,25/08/2016,Travel and Subsistence,BUSINESS SERVICES DIRECTORATE                                                                       ,Staff Payment,BA0000298860,3.66,,
BIS,The Insolvency Service,25/08/2016,Travel and Subsistence,BUSINESS SERVICES DIRECTORATE                                                                       ,Staff Payment,BA0000298860,97.00,,
BIS,The Insolvency Service,25/08/2016,Travel and Subsistence,BUSINESS SERVICES DIRECTORATE                                                                       ,Staff Payment,BA0000298860,130.50,,
BIS,The Insolvency Service,25/08/2016,Travel and Subsistence,BUSINESS SERVICES DIRECTORATE                                                                       ,Staff Payment,BA0000298860,10.00,,
BIS,The Insolvency Service,25/08/2016,Travel and Subsistence,BUSINESS SERVICES DIRECTORATE                                                                       ,Staff Payment,BA0000298860,97.20,,
BIS,The Insolvency Service,25/08/2016,Travel and Subsistence,INVESTIGATIONS & ENFORCEMENT                                                                        ,Staff Payment,BA0000298860,5.50,,
BIS,The Insolvency Service,25/08/2016,Travel and Subsistence,INVESTIGATIONS & ENFORCEMENT                                                                        ,Staff Payment,BA0000298860,37.80,,
BIS,The Insolvency Service,25/08/2016,Travel and Subsistence,INVESTIGATIONS & ENFORCEMENT                                                                        ,Staff Payment,BA0000298860,5.00,,
BIS,The Insolvency Service,25/08/2016,Travel and Subsistence,INVESTIGATIONS & ENFORCEMENT                                                                        ,Staff Payment,BA0000298860,60.30,,
BIS,The Insolvency Service,25/08/2016,Travel and Subsistence,INVESTIGATIONS & ENFORCEMENT                                                                        ,Staff Payment,BA0000298860,9.00,,
BIS,The Insolvency Service,25/08/2016,Travel and Subsistence,INVESTIGATIONS & ENFORCEMENT                                                                        ,Staff Payment,BA0000298860,8.50,,
BIS,The Insolvency Service,25/08/2016,Travel and Subsistence,INVESTIGATIONS & ENFORCEMENT                                                                        ,Staff Payment,BA0000298860,18.90,,
BIS,The Insolvency Service,25/08/2016,Travel and Subsistence,OFFICIAL RECEIVER SERVICES                                                                          ,Staff Payment,BA0000298860,18.00,,
BIS,The Insolvency Service,25/08/2016,Travel and Subsistence,OFFICIAL RECEIVER SERVICES                                                                          ,Staff Payment,BA0000298860,49.75,,
BIS,The Insolvency Service,25/08/2016,Travel and Subsistence,OFFICIAL RECEIVER SERVICES                                                                          ,Staff Payment,BA0000298860,13.60,,
BIS,The Insolvency Service,25/08/2016,Travel and Subsistence,OFFICIAL RECEIVER SERVICES                                                                          ,Staff Payment,BA0000298860,163.35,,
BIS,The Insolvency Service,25/08/2016,Travel and Subsistence,OFFICIAL RECEIVER SERVICES                                                                          ,Staff Payment,BA0000298860,6.50,,
BIS,The Insolvency Service,25/08/2016,Travel and Subsistence,OFFICIAL RECEIVER SERVICES                                                                          ,Staff Payment,BA0000298860,89.10,,
BIS,The Insolvency Service,25/08/2016,Travel and Subsistence,OFFICIAL RECEIVER SERVICES                                                                          ,Staff Payment,BA0000298860,18.45,,
BIS,The Insolvency Service,25/08/2016,Travel and Subsistence,OFFICIAL RECEIVER SERVICES                                                                          ,Staff Payment,BA0000298860,4.00,,
BIS,The Insolvency Service,25/08/2016,Travel and Subsistence,OFFICIAL RECEIVER SERVICES                                                                          ,Staff Payment,BA0000298860,9.00,,
BIS,The Insolvency Service,25/08/2016,Travel and Subsistence,OFFICIAL RECEIVER SERVICES                                                                          ,Staff Payment,BA0000298860,1.50,,
BIS,The Insolvency Service,25/08/2016,Travel and Subsistence,OFFICIAL RECEIVER SERVICES                                                                          ,Staff Payment,BA0000298860,33.30,,
